{"text_format":"1","workbook":"xlsx","n_sheets":2,"sheets":["Cylinder Compression Report","Sheet2"],"not_rendered":{"charts":0,"images":1,"macros":0,"external_links":0,"defined_names":0,"comments":0,"pivot_tables":0},"unopened":[],"bounds":{"document_bytes":16777216,"sheet_cells":100000,"rows_first":2000,"rows_last":500,"rows_between":2000,"halvings":0,"cell_chars":16384,"cell_head_chars":4096},"cells_cut":0,"cells_raw":0,"read":"whole","date_system":"1900"}

{"sheet":"Cylinder Compression Report","index":0,"n_rows":27,"n_cols":13,"rows_kept":27,"cut":false,"hidden":false,"merged":[[23,1,23,6],[24,0,24,6],[25,0,25,6],[26,0,26,6],[8,1,8,3],[8,5,8,7],[8,9,8,11],[9,1,9,3],[9,5,9,7],[9,8,9,9],[9,10,9,11],[6,1,6,3],[6,7,6,8],[6,10,6,11],[7,1,7,3],[7,5,7,7],[7,9,7,11]]}
[]
["Form 820958 ",null,null,null,null,null,null,null,null,null,"cc:","Ames"]
["3/20",null,null,null,null,null,null,null,null,null,null,null,"DME"]
["C.Barko",null,null,null,null,"  District 6 Materials  -  Cedar Rapids ",null,null,null,null,null,null,"PC Tech"]
["v2.0",null,null,null,"CONCRETE COMPRESSION"]
[null,null,null,null,null,null,null,null,null,null," "," "]
["Project",null,null,null,"Contract No.",null,"County",null,null,"Sampled By"]
["Producer",null,null,null,"Plant",null,null,null,"Contractor"]
["Cement",null,null,null,"Fly Ash Source",null,null,null,"Slag"]
["Course Agg",null,null,null,"Fine Agg"]
[]
["Date ","Cylinder","Cylinder","% Air","% Air",null,null,null,"Tested"]
["Made","No.","Size","Content","W/Correction","Slump","W/C","Mix","Date","Age","Total Load","Lb./Sq. In."]
[null,null,"4 x 8",null,null,null,null,null,null,{"$f":"IF(OR(A14=\"\", I14=\"\"),\"\", (I14-A14))","v":""},null,{"$f":"IF(C14=\"\",\"\", IF(AND(C14=\"4 x 8\",K14>0),(K14/12.566),\"\"))","v":""}]
[null,null,"4 x 8",null,null,null,null,null,null,{"$f":"IF(OR(A15=\"\", I15=\"\"),\"\", (I15-A15))","v":""},null,""]
[null,null,"4 x 8",null,null,null,null,null,null,"",null,""]
[null,null,"4 x 8",null,null,null,null,null,null,"",null,""]
[null,null,"4 x 8",null,null,null,null,null,null,"",null,""]
[null,null,"4 x 8",null,null,null,null,null,null,"",null,""]
[null,null,"4 x 8",null,null,null,null,null,null,"",null,""]
[null,null,"4 x 8",null,null,null,null,null,null,"",null,""]
[null,null,"4 x 8",null,null,null,null,null,null,"",null,""]
[null,null,null,null,null,null,null,null,null,null,"Average:",{"$f":"IF(L14=\"\",\"\",AVERAGE(L14:L22))","v":""}]
["Comments"]
[]
[null,null,null,null,null,null,null,"Signed"]
[null,null,null,null,null,null,null,null,"   District Materials Engineer"]

{"sheet":"Sheet2","index":1,"n_rows":1466,"n_cols":16,"rows_kept":1466,"cut":false,"hidden":true,"merged":[]}
["C.Barko"]
[null,null,"I"]
[null,null,"I/II"]
[null,null,"III"]
[null,null,"IP(25)"]
[null,null,"IS(20)"]
[null,null,"IS(25)"]
[]
["01-",null,"Adair",null,null,{"$f":"CONCATENATE(A9,C9)","v":"01-Adair"}]
["02-",null,"Adams",null,null,{"$f":"CONCATENATE(A10,C10)","v":"02-Adams"}]
["03-",null,"Allamakee",null,null,"03-Allamakee"]
["04-",null,"Appanoose",null,null,"04-Appanoose"]
["05-",null,"Audubon",null,null,"05-Audubon"]
["06-",null,"Benton",null,null,"06-Benton"]
["07-",null,"Black Hawk",null,null,"07-Black Hawk"]
["08-",null,"Boone",null,null,"08-Boone"]
["09-",null,"Bremer",null,null,"09-Bremer"]
["10-",null,"Buchanan",null,null,"10-Buchanan"]
["11-",null,"Buena Vista",null,null,"11-Buena Vista"]
["12-",null,"Butler",null,null,"12-Butler"]
["13-",null,"Calhoun",null,null,"13-Calhoun"]
["14-",null,"Carroll",null,null,"14-Carroll"]
["15-",null,"Cass",null,null,"15-Cass"]
["16-",null,"Cedar",null,null,"16-Cedar"]
["17-",null,"Cerro Gordo",null,null,"17-Cerro Gordo"]
["18-",null,"Cherokee",null,null,"18-Cherokee"]
["19-",null,"Chickasaw",null,null,"19-Chickasaw"]
["20-",null,"Clarke",null,null,"20-Clarke"]
["21-",null,"Clay",null,null,"21-Clay"]
["22-",null,"Clayton",null,null,"22-Clayton"]
["23-",null,"Clinton",null,null,"23-Clinton"]
["24-",null,"Crawford",null,null,"24-Crawford"]
["25-",null,"Dallas",null,null,"25-Dallas"]
["26-",null,"Davis",null,null,"26-Davis"]
["27-",null,"Decatur",null,null,"27-Decatur"]
["28-",null,"Delaware",null,null,"28-Delaware"]
["29-",null,"Des Moines",null,null,"29-Des Moines"]
["30-",null,"Dickinson",null,null,"30-Dickinson"]
["31-",null,"Dubuque",null,null,"31-Dubuque"]
["32-",null,"Emmet",null,null,"32-Emmet"]
["33-",null,"Fayette",null,null,"33-Fayette"]
["34-",null,"Floyd",null,null,"34-Floyd"]
["35-",null,"Franklin",null,null,"35-Franklin"]
["36-",null,"Fremont",null,null,"36-Fremont"]
["37-",null,"Greene",null,null,"37-Greene"]
["38-",null,"Grundy",null,null,"38-Grundy"]
["39-",null,"Guthrie",null,null,"39-Guthrie"]
["40-",null,"Hamilton",null,null,"40-Hamilton"]
["41-",null,"Hancock",null,null,"41-Hancock"]
["42-",null,"Hardin",null,null,"42-Hardin"]
["43-",null,"Harrison",null,null,"43-Harrison"]
["44-",null,"Henry",null,null,"44-Henry"]
["45-",null,"Howard",null,null,"45-Howard"]
["46-",null,"Humboldt",null,null,"46-Humboldt"]
["47-",null,"Ida",null,null,"47-Ida"]
["48-",null,"Iowa",null,null,"48-Iowa"]
["49-",null,"Jackson",null,null,"49-Jackson"]
["50-",null,"Jasper",null,null,"50-Jasper"]
["51-",null,"Jefferson",null,null,"51-Jefferson"]
["52-",null,"Johnson",null,null,"52-Johnson"]
["53-",null,"Jones",null,null,"53-Jones"]
["54-",null,"Keokuk",null,null,"54-Keokuk"]
["55-",null,"Kossuth",null,null,"55-Kossuth"]
["56-",null,"Lee",null,null,"56-Lee"]
["57-",null,"Linn",null,null,"57-Linn"]
["58-",null,"Louisa",null,null,"58-Louisa"]
["59-",null,"Lucas",null,null,"59-Lucas"]
["60-",null,"Lyon",null,null,"60-Lyon"]
["61-",null,"Madison",null,null,"61-Madison"]
["62-",null,"Mahaska",null,null,"62-Mahaska"]
["63-",null,"Marion",null,null,"63-Marion"]
["64-",null,"Marshall",null,null,"64-Marshall"]
["65-",null,"Mills",null,null,"65-Mills"]
["66-",null,"Mitchell",null,null,{"$f":"CONCATENATE(A74,C74)","v":"66-Mitchell"}]
["67-",null,"Monona",null,null,"67-Monona"]
["68-",null,"Monroe",null,null,"68-Monroe"]
["69-",null,"Montgomery",null,null,"69-Montgomery"]
["70-",null,"Muscatine",null,null,"70-Muscatine"]
["71-",null,"O'Brien",null,null,"71-O'Brien"]
["72-",null,"Osceola",null,null,"72-Osceola"]
["73-",null,"Page",null,null,"73-Page"]
["74-",null,"Palo Alto",null,null,"74-Palo Alto"]
["75-",null,"Plymouth",null,null,"75-Plymouth"]
["76-",null,"Pocahontas",null,null,"76-Pocahontas"]
["77-",null,"Polk",null,null,"77-Polk"]
["78-",null,"Pottawattamie",null,null,"78-Pottawattamie"]
["79-",null,"Poweshiek",null,null,"79-Poweshiek"]
["80-",null,"Ringgold",null,null,"80-Ringgold"]
["81-",null,"Sac",null,null,"81-Sac"]
["82-",null,"Scott",null,null,"82-Scott"]
["83-",null,"Shelby",null,null,"83-Shelby"]
["84-",null,"Sioux",null,null,"84-Sioux"]
["85-",null,"Story",null,null,"85-Story"]
["86-",null,"Tama",null,null,"86-Tama"]
["87-",null,"Taylor",null,null,"87-Taylor"]
["88-",null,"Union",null,null,"88-Union"]
["89-",null,"Van Buren",null,null,"89-Van Buren"]
["90-",null,"Wapello",null,null,"90-Wapello"]
["91-",null,"Warren",null,null,"91-Warren"]
["92-",null,"Washington",null,null,"92-Washington"]
["93-",null,"Wayne",null,null,"93-Wayne"]
["94-",null,"Webster",null,null,"94-Webster"]
["95-",null,"Winnebago",null,null,"95-Winnebago"]
["96-",null,"Winneshiek",null,null,"96-Winneshiek"]
["97-",null,"Woodbury",null,null,"97-Woodbury"]
["98-",null,"Worth",null,null,"98-Worth"]
["99-",null,"Wright",null,null,"99-Wright"]
[]
[]
["PC0002",null,null,{"$f":"CONCATENATE(A110,\"-\",H110, \", \", I110, \", \", J110)","v":"PC0002-Ash Grove - Louisville, l/ll, 3.14"},null,null,null,"Ash Grove - Louisville","l/ll",3.14]
["PC0003",null,null,{"$f":"CONCATENATE(A111,\"-\",H111, \", \", I111, \", \", J111)","v":"PC0003-Ash Grove - Louisville, lll, 3.15"},null,null,null,"Ash Grove - Louisville","lll",3.15]
["PC0008",null,null,{"$f":"CONCATENATE(A112,\"-\",H112, \", \", I112, \", \", J112)","v":"PC0008-Ash Grove - Louisville, lP(25), 2.99"},null,null,null,"Ash Grove - Louisville","lP(25)",2.99]
["PC0102",null,null,"PC0102-Ash Grove - Chanute, l/ll, 3.14",null,null,null,"Ash Grove - Chanute","l/ll",3.14]
["PC0103",null,null,"PC0103-Ash Grove - Chanute, lll, 3.15",null,null,null,"Ash Grove - Chanute","lll",3.15]
["PC0108",null,null,"PC0108-Ash Grove - Chanute, lP(25), 2.97",null,null,null,"Ash Grove - Chanute","lP(25)",2.97]
["PC0201",null,null,"PC0201-Continental - Hannibal, l, 3.14",null,null,null,"Continental - Hannibal","l",3.14]
["PC0202",null,null,"PC0202-Continental - Hannibal, l/ll, 3.14",null,null,null,"Continental - Hannibal","l/ll",3.14]
["PC0203",null,null,"PC0203-Continental - Hannibal, lll, 3.15",null,null,null,"Continental - Hannibal","lll",3.15]
["PC0401",null,null,"PC0401-Lehigh - Mason City, l, 3.14",null,null,null,"Lehigh - Mason City","l",3.14]
["PC0403",null,null,"PC0403-Lehigh - Mason City, lll, 3.15",null,null,null,"Lehigh - Mason City","lll",3.15]
["PC0409",null,null,"PC0409-Lehigh - Mason City, IL(10), 3.14",null,null,null,"Lehigh - Mason City","IL(10)",3.14]
["PC0502",null,null,"PC0502-Continental - Davenport, l/ll, 3.14",null,null,null,"Continental - Davenport","l/ll",3.14]
["PC0507",null,null,"PC0507-Continental - Davenport, lS(20), 3.1",null,null,null,"Continental - Davenport","lS(20)",3.1]
["PC0702",null,null,"PC0702-Central Plains , l/ll, 3.14",null,null,null,"Central Plains ","l/ll",3.14]
["PC0703",null,null,"PC0703-Central Plains , lll, 3.15",null,null,null,"Central Plains ","lll",3.15]
["PC0707",null,null,"PC0707-Central Plains EaglePave, lS(25), 3.06",null,null,null,"Central Plains EaglePave","lS(25)",3.06]
["PC0802",null,null,"PC0802-Monarch - Humboldt, l/ll, 3.14",null,null,null,"Monarch - Humboldt","l/ll",3.14]
["PC0803",null,null,"PC0803-Monarch - Humboldt, lll, 3.15",null,null,null,"Monarch - Humboldt","lll",3.15]
["PC1002",null,null,"PC1002-GCC - Rapid City, l/ll, 3.14",null,null,null,"GCC - Rapid City","l/ll",3.14]
["PC1003",null,null,"PC1003-GCC - Rapid City, lll, 3.15",null,null,null,"GCC - Rapid City","lll",3.15]
["PC1008",null,null,"PC1008-GCC - Rapid City, lP(25), 3.05",null,null,null,"GCC - Rapid City","lP(25)",3.05]
["PC1302",null,null,"PC1302-Lafarge - Grand Chain, l/ll, 3.14",null,null,null,"Lafarge - Grand Chain","l/ll",3.14]
["PC1401",null,null,"PC1401-Buzzi - Pryor, l, 3.14",null,null,null,"Buzzi - Pryor","l",3.14]
["PC1502",null,null,"PC1502-Buzzi - Cape Girardeau, l/ll, 3.14",null,null,null,"Buzzi - Cape Girardeau","l/ll",3.14]
["PC1702",null,null,"PC1702-St Marys - Ontario, ll, 3.14",null,null,null,"St Marys - Ontario","ll",3.14]
["PC1801",null,null,"PC1801-Lafarge - Alpena, l/ll, 3.14",null,null,null,"Lafarge - Alpena","l/ll",3.14]
["PC1901",null,null,"PC1901-Holcim - Ada, l/ll, 3.14",null,null,null,"Holcim - Ada","l/ll",3.14]
["PC2002",null,null,"PC2002-Holcim - Florence, l/ll, 3.14",null,null,null,"Holcim - Florence","l/ll",3.14]
["PC2008",null,null,"PC2008-Holcim - Florence, lP(25), 3.01",null,null,null,"Holcim - Florence","lP(25)",3.01]
["PC2508",null,null,"PC2508-Lafarge - Grand Chain, lT(S20)(P5), 3.07",null,null,null,"Lafarge - Grand Chain","lT(S20)(P5)",3.07]
["PC2808",null,null,"PC2808-Central Plains EaglePave , lP(25), 2.99",null,null,null,"Central Plains EaglePave ","lP(25)",2.99]
["PC2902",null,null,"PC2902-GCC - Pueblo, l/ll, 3.14",null,null,null,"GCC - Pueblo","l/ll",3.14]
["PC2903",null,null,"PC2903-GCC - Pueblo, lll, 3.15",null,null,null,"GCC - Pueblo","lll",3.15]
["PC3002",null,null,"PC3002-Buzzi - Festus, l/ll, 3.14",null,null,null,"Buzzi - Festus","l/ll",3.14]
["PC3202",null,null,"PC3202-Holcim - ST. Gen, l/ll, 3.14",null,null,null,"Holcim - ST. Gen","l/ll",3.14]
["PC3209",null,null,"PC3209-Holcim - ST. Gen, lL(10), 3.14",null,null,null,"Holcim - ST. Gen","lL(10)",3.14]
["PC3302",null,null,"PC3302-Illinois, l/ll, 3.14",null,null,null,"Illinois","l/ll",3.14]
["PC3402",null,null,"PC3402-St Marys - Charlevoix, ll, 3.14",null,null,null,"St Marys - Charlevoix","ll",3.14]
["PC3602",null,null,"PC3602-GCC - Samalayuca, l/ll, 3.14",null,null,null,"GCC - Samalayuca","l/ll",3.14]
["PC3603",null,null,"PC3603-GCC - Samalayuca, lll, 3.15",null,null,null,"GCC - Samalayuca","lll",3.15]
[]
[]
[]
["FA000C",null,null,{"$f":"CONCATENATE(A154,\"-\",K154, \", \", L154, \", \", M154)","v":"FA000C-Burlington Generating Station, C, 2.8"},null,null,null,null,null,null,"Burlington Generating Station","C",2.8]
["FA001C",null,null,{"$f":"CONCATENATE(A155,\"-\",K155, \", \", L155, \", \", M155)","v":"FA001C-Columbia Gen. St. #1, #2 or Combined, C, 2.75"},null,null,null,null,null,null,"Columbia Gen. St. #1, #2 or Combined","C",2.75]
["FA003CF",null,null,{"$f":"CONCATENATE(A156,\"-\",K156, \", \", L156, \", \", M156)","v":"FA003CF-Coal Creek Power Plant, CF, 2.48"},null,null,null,null,null,null,"Coal Creek Power Plant","CF",2.48]
["FA004C",null,null,"FA004C-Council Bluffs Unit #3, C, 2.62",null,null,null,null,null,null,"Council Bluffs Unit #3","C",2.62]
["FA005C",null,null,"FA005C-Iatan Generating Station, Unit #2 , C, 2.68",null,null,null,null,null,null,"Iatan Generating Station, Unit #2 ","C",2.68]
["FA007C",null,null,"FA007C-Iatan Generating Station, Unit #1, C, 2.78",null,null,null,null,null,null,"Iatan Generating Station, Unit #1","C",2.78]
["FA008C",null,null,"FA008C-Lansing Generating Station, C, 2.69",null,null,null,null,null,null,"Lansing Generating Station","C",2.69]
["FA009C",null,null,"FA009C-Louisa Generating Station, C, 2.75",null,null,null,null,null,null,"Louisa Generating Station","C",2.75]
["FA010C",null,null,"FA010C-Muscatine Power & Water, C, 2.76",null,null,null,null,null,null,"Muscatine Power & Water","C",2.76]
["FA011C",null,null,"FA011C-Nebraska City Station, C, 2.57",null,null,null,null,null,null,"Nebraska City Station","C",2.57]
["FA012C",null,null,"FA012C-North Omaha Generating Station, C, 2.68",null,null,null,null,null,null,"North Omaha Generating Station","C",2.68]
["FA013C",null,null,"FA013C-Ottumwa Generating Station, C, 2.75",null,null,null,null,null,null,"Ottumwa Generating Station","C",2.75]
["FA014C",null,null,"FA014C-Pleasant Prairie Generating Station, C, 2.55",null,null,null,null,null,null,"Pleasant Prairie Generating Station","C",2.5499999999999998]
["FA015C",null,null,"FA015C-Port Neal Power Plant #3, #4 or Comb., C, 2.66",null,null,null,null,null,null,"Port Neal Power Plant #3, #4 or Comb.","C",2.66]
["FA017F",null,null,"FA017F-Joliet Generating Station, F, 2.54",null,null,null,null,null,null,"Joliet Generating Station","F",2.54]
["FA018C",null,null,"FA018C-M.L. Kapp Generating Station, C, 2.73",null,null,null,null,null,null,"M.L. Kapp Generating Station","C",2.73]
["FA020C",null,null,"FA020C-Edgewater Unit #5 Generating Station, C, 2.78",null,null,null,null,null,null,"Edgewater Unit #5 Generating Station","C",2.78]
["FA021F",null,null,"FA021F-Monticello Plant, F, 2.5",null,null,null,null,null,null,"Monticello Plant","F",2.5]
["FA022C",null,null,"FA022C-Labadie Power Plant Labadie, C, 2.73",null,null,null,null,null,null,"Labadie Power Plant Labadie","C",2.73]
["FA025C",null,null,"FA025C-Thomas Hill Energy Center, C, 2.7",null,null,null,null,null,null,"Thomas Hill Energy Center","C",2.7]
["FA026C",null,null,"FA026C-Weston Generating Station, C, 2.64",null,null,null,null,null,null,"Weston Generating Station","C",2.64]
["FA027C",null,null,"FA027C-Rush Island Power Plant, C, 2.69",null,null,null,null,null,null,"Rush Island Power Plant","C",2.69]
["FA028C",null,null,"FA028C-Gerald Gentleman Station, Unit #1, C, 2.62",null,null,null,null,null,null,"Gerald Gentleman Station, Unit #1","C",2.62]
["FA031C",null,null,"FA031C-Dynegy Power Plant, C, 2.74",null,null,null,null,null,null,"Dynegy Power Plant","C",2.74]
["FA032C",null,null,"FA032C-J.P. Madgett St., Dairyland, Poz AC, C, 2.7",null,null,null,null,null,null,"J.P. Madgett St., Dairyland, Poz AC","C",2.7]
["FA033C",null,null,"FA033C-Northeastern Generating Station, C, 2.68",null,null,null,null,null,null,"Northeastern Generating Station","C",2.68]
["FA034C",null,null,"FA034C-Genoa Power Station #3, Dairyland, C, 2.7",null,null,null,null,null,null,"Genoa Power Station #3, Dairyland","C",2.7]
["FA035C",null,null,"FA035C-La Cygne Station Power Plant, Unit #2, C, 2.64",null,null,null,null,null,null,"La Cygne Station Power Plant, Unit #2","C",2.64]
["FA036C",null,null,"FA036C-Montrose Station Power Plant, Unit #3, C, 2.67",null,null,null,null,null,null,"Montrose Station Power Plant, Unit #3","C",2.67]
["FA037C",null,null,"FA037C-Elm Road Generating Station Combined, C, 2.7",null,null,null,null,null,null,"Elm Road Generating Station Combined","C",2.7]
["FA038F",null,null,"FA038F-Petersburg Generating Station, Unit #3, F, 2.52",null,null,null,null,null,null,"Petersburg Generating Station, Unit #3","F",2.52]
["FA039C",null,null,"FA039C-Clay Boswell Gen. St., Unit #3, C, 2.61",null,null,null,null,null,null,"Clay Boswell Gen. St., Unit #3","C",2.61]
["FA041C",null,null,"FA041C-Prairie Creek Gen. St., Unit #3, C, 2.8",null,null,null,null,null,null,"Prairie Creek Gen. St., Unit #3","C",2.8]
["FA042C",null,null,"FA042C-Muskogee Generating Station, C, 2.69",null,null,null,null,null,null,"Muskogee Generating Station","C",2.69]
["FA043F",null,null,"FA043F-Durapoz F, F, 2.55",null,null,null,null,null,null,"Durapoz F","F",2.5499999999999998]
["FA044C",null,null,"FA044C-Dynegy Newton Power Station, C, 2.66",null,null,null,null,null,null,"Dynegy Newton Power Station","C",2.66]
["FA045C",null,null,"FA045C-Oak Creek Power Station, C, 2.7",null,null,null,null,null,null,"Oak Creek Power Station","C",2.7]
["FA046F",null,null,"FA046F-Praire State Generating Station, F, 2.42",null,null,null,null,null,null,"Praire State Generating Station","F",2.42]
["FA047C",null,null,"FA047C-Fremont Utilities, C, 2.7",null,null,null,null,null,null,"Fremont Utilities","C",2.7]
["FA137F",null,null,"FA137F-Elm Road Generating Station Unit #1, F, 2.68",null,null,null,null,null,null,"Elm Road Generating Station Unit #1","F",2.68]
["FA148C",null,null,"FA148C-Silver Bay Power, Unit 1, C, 2.72",null,null,null,null,null,null,"Silver Bay Power, Unit 1","C",2.72]
["FA237F",null,null,"FA237F-Elm Road Generating Station Unit #2, F, 2.67",null,null,null,null,null,null,"Elm Road Generating Station Unit #2","F",2.67]
["FA248C",null,null,"FA248C-Silver Bay Power, Unit 2, C, 2.75",null,null,null,null,null,null,"Silver Bay Power, Unit 2","C",2.75]
[]
[]
[]
["SL02A",null,null,{"$f":"CONCATENATE(A200,\"-\",N200, \", \", P200, \", \", O200)","v":"SL02A-NewCem, 100, 2.93"},null,null,null,null,null,null,null,null,null,"NewCem",2.93,100]
["SL00A",null,null,{"$f":"CONCATENATE(A201,\"-\",N201, \", \", P201, \", \", O201)","v":"SL00A-Skyway Cement, 100, 2.87"},null,null,null,null,null,null,null,null,null,"Skyway Cement",2.87,100]
[]
[]
[]
[{"$f":"CONCATENATE(B205,\"-\",E205)","v":"A01002-MENLO"},"A01002",null,null,"MENLO"]
["A01008-JEFFERSON","A01008",null,null,"JEFFERSON"]
["A02002-MT ETNA","A02002",null,null,"MT ETNA"]
["A02004-CORNING","A02004",null,null,"CORNING"]
["A03002-WEXFORD","A03002",null,null,"WEXFORD"]
["A03004-LANGE","A03004",null,null,"LANGE"]
["A03008-MCCABE","A03008",null,null,"MCCABE"]
["A03010-RUDE","A03010",null,null,"RUDE"]
["A03014-HAMMELL-BOONIES","A03014",null,null,"HAMMELL-BOONIES"]
["A03022-LIVINGOOD","A03022",null,null,"LIVINGOOD"]
["A03026-BYRNES","A03026",null,null,"BYRNES"]
["A03028-WELPER-JOHNSON","A03028",null,null,"WELPER-JOHNSON"]
["A03036-SWENSON","A03036",null,null,"SWENSON"]
["A03038-RIEHM","A03038",null,null,"RIEHM"]
["A03040-DEE","A03040",null,null,"DEE"]
["A03042-CHURCHTOWN","A03042",null,null,"CHURCHTOWN"]
["A03048-POSTVILLE","A03048",null,null,"POSTVILLE"]
["A03050-GREEN","A03050",null,null,"GREEN"]
["A03052-ROSSVILLE","A03052",null,null,"ROSSVILLE"]
["A03054-WEST RIDGE","A03054",null,null,"WEST RIDGE"]
["A03058-ELON","A03058",null,null,"ELON"]
["A03064-RAINBOW","A03064",null,null,"RAINBOW"]
["A03066-ELSBERND","A03066",null,null,"ELSBERND"]
["A03068-JEFFERSON","A03068",null,null,"JEFFERSON"]
["A03070-BULMAN","A03070",null,null,"BULMAN"]
["A03072-STRONG","A03072",null,null,"STRONG"]
["A03502-HARPERS FERRY","A03502",null,null,"HARPERS FERRY"]
["A04016-LEMLEY EAST #5","A04016",null,null,"LEMLEY EAST #5"]
["A04018-CLARKDALE #8","A04018",null,null,"CLARKDALE #8"]
["A04020-PLANO","A04020",null,null,"PLANO"]
["A05506-EXIRA","A05506",null,null,"EXIRA"]
["A06006-GARRISON B","A06006",null,null,"GARRISON B"]
["A06012-JABENS","A06012",null,null,"JABENS"]
["A06012-JABENS","A06012",null,null,"JABENS"]
["A06014-VINTON-MILROY","A06014",null,null,"VINTON-MILROY"]
["A06016-COOTS","A06016",null,null,"COOTS"]
["A07004-WATERLOO SOUTH","A07004",null,null,"WATERLOO SOUTH"]
["A07008-MORGAN","A07008",null,null,"MORGAN"]
["A07008-MORGAN","A07008",null,null,"MORGAN"]
["A07018-RAYMOND-PESKE","A07018",null,null,"RAYMOND-PESKE"]
["A07018-RAYMOND-PESKE","A07018",null,null,"RAYMOND-PESKE"]
["A07018-RAYMOND-PESKE","A07018",null,null,"RAYMOND-PESKE"]
["A07020-STEINBRON","A07020",null,null,"STEINBRON"]
["A07022-MESSERLY","A07022",null,null,"MESSERLY"]
["A07508-GILBERTVILLE","A07508",null,null,"GILBERTVILLE"]
["A09002-FREDERIKA","A09002",null,null,"FREDERIKA"]
["A09006-TRIPOLI-PLATTE","A09006",null,null,"TRIPOLI-PLATTE"]
["A09006-TRIPOLI-PLATTE","A09006",null,null,"TRIPOLI-PLATTE"]
["A09008-DENVER #2","A09008",null,null,"DENVER #2"]
["A10002-WESTON-LAMONT","A10002",null,null,"WESTON-LAMONT"]
["A10004-BLOOM-JESUP","A10004",null,null,"BLOOM-JESUP"]
["A10008-OELWEIN","A10008",null,null,"OELWEIN"]
["A10010-HAZELTON","A10010",null,null,"HAZELTON"]
["A10012-INDEPENDENCE","A10012",null,null,"INDEPENDENCE"]
["A10014-OELWEIN #1","A10014",null,null,"OELWEIN #1"]
["A10016-OELWEIN #2","A10016",null,null,"OELWEIN #2"]
["A10022-BROOKS","A10022",null,null,"BROOKS"]
["A10024-RASMUSSEN #2","A10024",null,null,"RASMUSSEN #2"]
["A10026-BRANDON","A10026",null,null,"BRANDON"]
["A10028-HERTZBERGER","A10028",null,null,"HERTZBERGER"]
["A10030-SOUTH AURORA","A10030",null,null,"SOUTH AURORA"]
["A10032-SELLS","A10032",null,null,"SELLS"]
["A10040-ZUPKE-OELWEIN","A10040",null,null,"ZUPKE-OELWEIN"]
["A10042-BRANDON I-380","A10042",null,null,"BRANDON I-380"]
[{"$f":"CONCATENATE(B269,\"-\",E269)","v":"A12004-LUBBEN"},"A12004",null,null,"LUBBEN"]
["A12008-FLORRY-STEERE","A12008",null,null,"FLORRY-STEERE"]
["A12010-CLARKSVILLE-ENGLE","A12010",null,null,"CLARKSVILLE-ENGLE"]
["A12014-OLTMANN","A12014",null,null,"OLTMANN"]
["A12016-WIEGMANN-BRISTOW","A12016",null,null,"WIEGMANN-BRISTOW"]
["A12018-NEYMEYER","A12018",null,null,"NEYMEYER"]
["A12020-BRUNS #2","A12020",null,null,"BRUNS #2"]
["A12502-CLARKSVILLE","A12502",null,null,"CLARKSVILLE"]
["A14504-REINHART","A14504",null,null,"REINHART"]
["A14510-LANESBORO","A14510",null,null,"LANESBORO"]
["A14514-MACKE","A14514",null,null,"MACKE"]
["A14518-MILLER","A14518",null,null,"MILLER"]
["A15004-LEWIS","A15004",null,null,"LEWIS"]
["A15008-ATLANTIC MINE","A15008",null,null,"ATLANTIC MINE"]
["A16004-LOWDEN-SCHNECKLOTH","A16004",null,null,"LOWDEN-SCHNECKLOTH"]
["A16006-STONEMILL","A16006",null,null,"STONEMILL"]
["A16012-ONION GROVE","A16012",null,null,"ONION GROVE"]
["A16014-TOWNSEND","A16014",null,null,"TOWNSEND"]
["A16022-TRICON","A16022",null,null,"TRICON"]
["A16026-PEDEN #2","A16026",null,null,"PEDEN #2"]
["A17008-PORTLAND WEST","A17008",null,null,"PORTLAND WEST"]
["A17012-UBBEN","A17012",null,null,"UBBEN"]
["A17020-MASON CITY","A17020",null,null,"MASON CITY"]
["A17020-MASON CITY","A17020",null,null,"MASON CITY"]
["A17024-RIVERVIEW","A17024",null,null,"RIVERVIEW"]
["A17514-HOLCIM SAND","A17514",null,null,"HOLCIM SAND"]
["A18506-CHEROKEE SOUTH","A18506",null,null,"CHEROKEE SOUTH"]
["A18514-LARRABEE-MONTGOMERY","A18514",null,null,"LARRABEE-MONTGOMERY"]
["A18526-CHEROKEE NORTH","A18526",null,null,"CHEROKEE NORTH"]
["A18528-WASHTA","A18528",null,null,"WASHTA"]
["A18534-NELSON","A18534",null,null,"NELSON"]
["A19004-DEERFIELD-MAHONEY","A19004",null,null,"DEERFIELD-MAHONEY"]
["A19008-BOICE","A19008",null,null,"BOICE"]
["A19522-BUCKY'S","A19522",null,null,"BUCKY'S"]
["A20002-OSCEOLA","A20002",null,null,"OSCEOLA"]
["A21506-EVERLY","A21506",null,null,"EVERLY"]
["A21516-SPENCER #1","A21516",null,null,"SPENCER #1"]
["A21528-GOEKEN","A21528",null,null,"GOEKEN"]
["A22002-TWIN ROCK-SCHRADER","A22002",null,null,"TWIN ROCK-SCHRADER"]
["A22004-BENTE-ELKADER-WATSON","A22004",null,null,"BENTE-ELKADER-WATSON"]
["A22008-ANDEREGG","A22008",null,null,"ANDEREGG"]
["A22010-OSTERDOCK","A22010",null,null,"OSTERDOCK"]
["A22012-SCHMIDT","A22012",null,null,"SCHMIDT"]
["A22014-BLUME","A22014",null,null,"BLUME"]
["A22018-ZURCHER","A22018",null,null,"ZURCHER"]
["A22024-MIELKES QUARRY","A22024",null,null,"MIELKES QUARRY"]
["A22032-WELLMAN","A22032",null,null,"WELLMAN"]
["A22038-FASSBINDER","A22038",null,null,"FASSBINDER"]
["A22040-HARTMAN","A22040",null,null,"HARTMAN"]
["A22042-MORAREND","A22042",null,null,"MORAREND"]
["A22044-BOGE","A22044",null,null,"BOGE"]
["A22048-TUCKER","A22048",null,null,"TUCKER"]
["A22058-ST. OLAF","A22058",null,null,"ST. OLAF"]
["A22060-JOHNSON","A22060",null,null,"JOHNSON"]
["A22062-SNY MAGILL","A22062",null,null,"SNY MAGILL"]
["A22068-MILLVILLE","A22068",null,null,"MILLVILLE"]
["A22070-BERNHARD/GIARD","A22070",null,null,"BERNHARD/GIARD"]
["A22074-STRAWBERRY POINT","A22074",null,null,"STRAWBERRY POINT"]
["A22076-LARSON","A22076",null,null,"LARSON"]
["A22080-HILINE","A22080",null,null,"HILINE"]
["A22084-MOYNA","A22084",null,null,"MOYNA"]
["A22086-WILLIE","A22086",null,null,"WILLIE"]
["A22088-KEPPLER","A22088",null,null,"KEPPLER"]
["A22090-FRENCHTOWN","A22090",null,null,"FRENCHTOWN"]
[{"$f":"CONCATENATE(B333,\"-\",E333)","v":"A22090-FRENCHTOWN"},"A22090",null,null,"FRENCHTOWN"]
["A22092-LARSON","A22092",null,null,"LARSON"]
["A23002-ELWOOD-YEAGER","A23002",null,null,"ELWOOD-YEAGER"]
["A23004-BEHR","A23004",null,null,"BEHR"]
["A23006-SHAFFTON","A23006",null,null,"SHAFFTON"]
["A23010-GOOSE LAKE","A23010",null,null,"GOOSE LAKE"]
["A23012-TEEDS GROVE","A23012",null,null,"TEEDS GROVE"]
["A23016-LYONS","A23016",null,null,"LYONS"]
["A23026-MILL CREEK","A23026",null,null,"MILL CREEK"]
["A23028-DELMAR","A23028",null,null,"DELMAR"]
["A23030-EDON VALLEY","A23030",null,null,"EDON VALLEY"]
["A23032-ANDERSON","A23032",null,null,"ANDERSON"]
["A23504-BEHR","A23504",null,null,"BEHR"]
["A24512-DUNLAP","A24512",null,null,"DUNLAP"]
["A25510-PERRY","A25510",null,null,"PERRY"]
["A25514-BOONEVILLE","A25514",null,null,"BOONEVILLE"]
["A25516-VAN METER SOUTH","A25516",null,null,"VAN METER SOUTH"]
["A25518-RACCOON RIVER SAND","A25518",null,null,"RACCOON RIVER SAND"]
["A26004-LEWIS","A26004",null,null,"LEWIS"]
["A26006-BROWN","A26006",null,null,"BROWN"]
["A27002-GRAND RIVER","A27002",null,null,"GRAND RIVER"]
["A27008-DECATUR","A27008",null,null,"DECATUR"]
["A28008-EDGEWOOD WEST","A28008",null,null,"EDGEWOOD WEST"]
["A28008-EDGEWOOD WEST","A28008",null,null,"EDGEWOOD WEST"]
["A28010-TIBBOTT","A28010",null,null,"TIBBOTT"]
["A28012-BAUL","A28012",null,null,"BAUL"]
["A28014-LOGAN","A28014",null,null,"LOGAN"]
["A28016-WHITE","A28016",null,null,"WHITE"]
["A28020-DEUTMEYER","A28020",null,null,"DEUTMEYER"]
["A28030-HOPKINTON","A28030",null,null,"HOPKINTON"]
["A28032-SCHNITTJER-DELHI","A28032",null,null,"SCHNITTJER-DELHI"]
["A28038-EDGEWOOD EAST","A28038",null,null,"EDGEWOOD EAST"]
["A28040-KRAPFL","A28040",null,null,"KRAPFL"]
["A28042-WALSTON-MASONVILLE","A28042",null,null,"WALSTON-MASONVILLE"]
["A28044-DUNDEE","A28044",null,null,"DUNDEE"]
["A28046-PINS","A28046",null,null,"PINS"]
["A28050-BUCK CREEK","A28050",null,null,"BUCK CREEK"]
["A28052-MANCHESTER","A28052",null,null,"MANCHESTER"]
["A28056-THORPE","A28056",null,null,"THORPE"]
["A28058-ROSSOW/MANCHESTER","A28058",null,null,"ROSSOW/MANCHESTER"]
["A29002-MEDIAPOLIS-LEONARD","A29002",null,null,"MEDIAPOLIS-LEONARD"]
["A29008-NELSON","A29008",null,null,"NELSON"]
["A29008-NELSON","A29008",null,null,"NELSON"]
["A29012-GEODE","A29012",null,null,"GEODE"]
["A29502-SPRING GROVE","A29502",null,null,"SPRING GROVE"]
["A30508-FOSTORIA/LOST","A30508",null,null,"FOSTORIA/LOST"]
["A30510-WEDEKING","A30510",null,null,"WEDEKING"]
["A30514-MILFORD/LEITH","A30514",null,null,"MILFORD/LEITH"]
["A30520-MILFORD/DERNER","A30520",null,null,"MILFORD/DERNER"]
["A31002-ROSE SPUR","A31002",null,null,"ROSE SPUR"]
["A31006-DYERSVILLE EAST","A31006",null,null,"DYERSVILLE EAST"]
["A31008-KLEIN-RICHARDSVILLE","A31008",null,null,"KLEIN-RICHARDSVILLE"]
["A31010-BROWN","A31010",null,null,"BROWN"]
["A31014-KURT","A31014",null,null,"KURT"]
["A31018-MELOY","A31018",null,null,"MELOY"]
["A31020-SCHLITCHE","A31020",null,null,"SCHLITCHE"]
["A31024-JOHNS CREEK","A31024",null,null,"JOHNS CREEK"]
["A31026-ARNSDORF","A31026",null,null,"ARNSDORF"]
["A31028-THOLE","A31028",null,null,"THOLE"]
["A31030-KEMP","A31030",null,null,"KEMP"]
["A31032-CASCADE-REITER","A31032",null,null,"CASCADE-REITER"]
["A31036-BALLTOWN","A31036",null,null,"BALLTOWN"]
["A31040-KENNEDY","A31040",null,null,"KENNEDY"]
["A31042-GANSEN","A31042",null,null,"GANSEN"]
[{"$f":"CONCATENATE(B397,\"-\",E397)","v":"A31046-DECKER"},"A31046",null,null,"DECKER"]
["A31048-MCDERMOTT","A31048",null,null,"MCDERMOTT"]
["A31050-PLOESSEL-DYERSVILLE","A31050",null,null,"PLOESSEL-DYERSVILLE"]
["A31052-EPWORTH-KIDDER","A31052",null,null,"EPWORTH-KIDDER"]
["A31056-RUBIE","A31056",null,null,"RUBIE"]
["A31058-HOLY CROSS","A31058",null,null,"HOLY CROSS"]
["A31060-CASCADE EAST","A31060",null,null,"CASCADE EAST"]
["A31064-WEBER","A31064",null,null,"WEBER"]
["A31066-FILLMORE","A31066",null,null,"FILLMORE"]
["A31068-DYERSVILLE-MAIERS","A31068",null,null,"DYERSVILLE-MAIERS"]
["A31070-GREEN VALLEY","A31070",null,null,"GREEN VALLEY"]
["A32502-ESTHERVILLE","A32502",null,null,"ESTHERVILLE"]
["A32530-ESTHERVILLE/WHITE","A32530",null,null,"ESTHERVILLE/WHITE"]
["A32538-JENSEN","A32538",null,null,"JENSEN"]
["A32548-LILLAND","A32548",null,null,"LILLAND"]
["A33002-ELDORADO-JACOBSEN","A33002",null,null,"ELDORADO-JACOBSEN"]
["A33004-HOUG","A33004",null,null,"HOUG"]
["A33010-VOSHELL","A33010",null,null,"VOSHELL"]
["A33018-FAIRBANK","A33018",null,null,"FAIRBANK"]
["A33020-YEAROUS","A33020",null,null,"YEAROUS"]
["A33024-WAUCOMA","A33024",null,null,"WAUCOMA"]
["A33026-LYNCH","A33026",null,null,"LYNCH"]
["A33032-LANDIS","A33032",null,null,"LANDIS"]
["A33034-MCDONOUGH","A33034",null,null,"MCDONOUGH"]
["A33036-GRAHAM-HAWKEYE","A33036",null,null,"GRAHAM-HAWKEYE"]
["A33038-PAPE","A33038",null,null,"PAPE"]
["A33040-SINNOTT","A33040",null,null,"SINNOTT"]
["A33042-LEHMAN","A33042",null,null,"LEHMAN"]
["A33044-FAYETTE 93","A33044",null,null,"FAYETTE 93"]
["A34002-CARVILLE-BUNN","A34002",null,null,"CARVILLE-BUNN"]
["A34004-MAXON","A34004",null,null,"MAXON"]
["A34004-MAXON","A34004",null,null,"MAXON"]
["A34006-JOHLAS","A34006",null,null,"JOHLAS"]
["A34008-WARNHOLTZ","A34008",null,null,"WARNHOLTZ"]
["A34008-WARNHOLTZ","A34008",null,null,"WARNHOLTZ"]
["A34010-LACOSTA","A34010",null,null,"LACOSTA"]
["A34012-WILLIAMS","A34012",null,null,"WILLIAMS"]
["A34014-HANNMANN","A34014",null,null,"HANNMANN"]
["A34018-JONES","A34018",null,null,"JONES"]
["A34018-JONES","A34018",null,null,"JONES"]
["A34020-JENSEN","A34020",null,null,"JENSEN"]
["A34502-ROCKFORD","A34502",null,null,"ROCKFORD"]
["A34516-CEDAR ACRE RESORTS","A34516",null,null,"CEDAR ACRE RESORTS"]
["A34520-Foothill","A34520",null,null,"Foothill"]
["A35002-DOWS","A35002",null,null,"DOWS"]
["A35016-AYRES","A35016",null,null,"AYRES"]
["A35502-GENEVA","A35502",null,null,"GENEVA"]
["A35522-MCDOWELL SAND","A35522",null,null,"MCDOWELL SAND"]
["A36002-THURMAN","A36002",null,null,"THURMAN"]
["A37504-JEFFERSON","A37504",null,null,"JEFFERSON"]
["A37520-HAMILTON","A37520",null,null,"HAMILTON"]
["A40006-GRANDGEORGE","A40006",null,null,"GRANDGEORGE"]
["A41002-GARNER NORTH","A41002",null,null,"GARNER NORTH"]
["A42002-ALDEN","A42002",null,null,"ALDEN"]
["A42002-ALDEN","A42002",null,null,"ALDEN"]
["A42004-GIFFORD","A42004",null,null,"GIFFORD"]
["A43002-LOGAN","A43002",null,null,"LOGAN"]
["A43512-WOODBINE-MCCANN","A43512",null,null,"WOODBINE-MCCANN"]
["A44002-KINNEY & SONS","A44002",null,null,"KINNEY & SONS"]
["A44004-MT PLEASANT NORTH","A44004",null,null,"MT PLEASANT NORTH"]
["A44006-LEEPER","A44006",null,null,"LEEPER"]
["A44008-MT PLEASANT","A44008",null,null,"MT PLEASANT"]
["A45004-STINGER","A45004",null,null,"STINGER"]
["A45006-NELSON","A45006",null,null,"NELSON"]
[{"$f":"CONCATENATE(B461,\"-\",E461)","v":"A45008-DOTZLER"},"A45008",null,null,"DOTZLER"]
["A45010-DALEY","A45010",null,null,"DALEY"]
["A45014-O'DONNEL","A45014",null,null,"O'DONNEL"]
["A45018-LE ROY","A45018",null,null,"LE ROY"]
["A45028-ELMA","A45028",null,null,"ELMA"]
["A45030-DIEKEN-TANK","A45030",null,null,"DIEKEN-TANK"]
["A45032-KITCHEN","A45032",null,null,"KITCHEN"]
["A45504-ECKERMAN","A45504",null,null,"ECKERMAN"]
["A45508-SOVEREIGN","A45508",null,null,"SOVEREIGN"]
["A46004-GRIFFITH","A46004",null,null,"GRIFFITH"]
["A46006-HODGES","A46006",null,null,"HODGES"]
["A46006-HODGES","A46006",null,null,"HODGES"]
["A46014-PEDERSEN","A46014",null,null,"PEDERSEN"]
["A46014-PEDERSEN","A46014",null,null,"PEDERSEN"]
["A46014-PEDERSEN","A46014",null,null,"PEDERSEN"]
["A46016-ERICKSON","A46016",null,null,"ERICKSON"]
["A46018-MOORE EAST","A46018",null,null,"MOORE EAST"]
["A46518-PEDERSEN","A46518",null,null,"PEDERSEN"]
["A47504-CROCKER","A47504",null,null,"CROCKER"]
["A49002-BELLEVUE","A49002",null,null,"BELLEVUE"]
["A49004-LAMOTT","A49004",null,null,"LAMOTT"]
["A49008-IRON HILL","A49008",null,null,"IRON HILL"]
["A49010-ANDREW","A49010",null,null,"ANDREW"]
["A49012-FROST","A49012",null,null,"FROST"]
["A49016-WEIS","A49016",null,null,"WEIS"]
["A49020-PRESTON","A49020",null,null,"PRESTON"]
["A49020-PRESTON","A49020",null,null,"PRESTON"]
["A49021-PRESTON R/M","A49021",null,null,"PRESTON R/M"]
["A49021-PRESTON R/M","A49021",null,null,"PRESTON R/M"]
["A49022-BELLEVUE","A49022",null,null,"BELLEVUE"]
["A49024-MAQUOKETA EAST","A49024",null,null,"MAQUOKETA EAST"]
["A49024-MAQUOKETA EAST","A49024",null,null,"MAQUOKETA EAST"]
["A49030-SPRINGBROOK","A49030",null,null,"SPRINGBROOK"]
["A49040-JOINERVILLE-HAMANN","A49040",null,null,"JOINERVILLE-HAMANN"]
["A49042-PETERSON","A49042",null,null,"PETERSON"]
["A49044-FRANK","A49044",null,null,"FRANK"]
["A49046-ROWAN","A49046",null,null,"ROWAN"]
["A49060-ST DONATUS","A49060",null,null,"ST DONATUS"]
["A49062-JOHNSON","A49062",null,null,"JOHNSON"]
["A49064-VEACH","A49064",null,null,"VEACH"]
["A49066-MOREHEAD","A49066",null,null,"MOREHEAD"]
["A49506-BELLEVUE","A49506",null,null,"BELLEVUE"]
["A49516-TURNER","A49516",null,null,"TURNER"]
["A49524-GRIEBEL","A49524",null,null,"GRIEBEL"]
["A49526-BELLEVUE FARM","A49526",null,null,"BELLEVUE FARM"]
["A49530-PETERSON","A49530",null,null,"PETERSON"]
["A50002-SULLY MINE","A50002",null,null,"SULLY MINE"]
["A51006-JEFFERSON","A51006",null,null,"JEFFERSON"]
["A52002-FOUR CO.","A52002",null,null,"FOUR CO."]
["A52004-CONKLIN","A52004",null,null,"CONKLIN"]
["A52004-CONKLIN","A52004",null,null,"CONKLIN"]
["A52006-KLEIN","A52006",null,null,"KLEIN"]
["A52006-KLEIN","A52006",null,null,"KLEIN"]
["A52008-ERNST","A52008",null,null,"ERNST"]
["A53002-FARMERS-BEHRENDS","A53002",null,null,"FARMERS-BEHRENDS"]
["A53004-MONTICELLO","A53004",null,null,"MONTICELLO"]
["A53006-ANAMOSA-VERNON","A53006",null,null,"ANAMOSA-VERNON"]
["A53010-BALLOU-OLIN","A53010",null,null,"BALLOU-OLIN"]
["A53012-WYOMING","A53012",null,null,"WYOMING"]
["A53014-JACOBS-SCOTCH GROVE","A53014",null,null,"JACOBS-SCOTCH GROVE"]
["A53016-STONE CITY","A53016",null,null,"STONE CITY"]
["A53018-FINN","A53018",null,null,"FINN"]
["A53024-SULLIVAN","A53024",null,null,"SULLIVAN"]
["A53026-ANAMOSA","A53026",null,null,"ANAMOSA"]
[{"$f":"CONCATENATE(B525,\"-\",E525)","v":"A54002-KESWICK"},"A54002",null,null,"KESWICK"]
["A54004-OLLIE","A54004",null,null,"OLLIE"]
["A54004-OLLIE","A54004",null,null,"OLLIE"]
["A54008-HARPER","A54008",null,null,"HARPER"]
["A54010-LYLE MINE","A54010",null,null,"LYLE MINE"]
["A54012-KEOKUK COUNTY QUARRY","A54012",null,null,"KEOKUK COUNTY QUARRY"]
["A56002-HAWKEYE","A56002",null,null,"HAWKEYE"]
["A56006-ARGYLE","A56006",null,null,"ARGYLE"]
["A56008-DONNELLSON","A56008",null,null,"DONNELLSON"]
["A56012-VINCENNES","A56012",null,null,"VINCENNES"]
["A56014-BEACH","A56014",null,null,"BEACH"]
["A56016-HERITAGE","A56016",null,null,"HERITAGE"]
["A56018-OMG CESSFORD AUGUSTA","A56018",null,null,"OMG CESSFORD AUGUSTA"]
["A56020-PNB PROCESSORS AUGUSTA","A56020",null,null,"PNB PROCESSORS AUGUSTA"]
["A56022-VINCENNES SAND PIT QUARRY","A56022",null,null,"VINCENNES SAND PIT QUARRY"]
["A57002-BETENBENDER-COGGON","A57002",null,null,"BETENBENDER-COGGON"]
["A57004-PLOWER","A57004",null,null,"PLOWER"]
["A57006-ROBINS","A57006",null,null,"ROBINS"]
["A57008-BOWSER-SPRINGVILLE","A57008",null,null,"BOWSER-SPRINGVILLE"]
["A57010-TROY MILLS","A57010",null,null,"TROY MILLS"]
["A57014-SWEETING","A57014",null,null,"SWEETING"]
["A57016-ALICE","A57016",null,null,"ALICE"]
["A57018-CEDAR RAPIDS","A57018",null,null,"CEDAR RAPIDS"]
["A57022-LEE CRAWFORD","A57022",null,null,"LEE CRAWFORD"]
["A57026-COOK","A57026",null,null,"COOK"]
["A57028-CEDAR RAPIDS SOUTH","A57028",null,null,"CEDAR RAPIDS SOUTH"]
["A57030-HENNESSEY","A57030",null,null,"HENNESSEY"]
["A57528-BLAIRSFERRY SAND","A57528",null,null,"BLAIRSFERRY SAND"]
["A58002-COLUMBUS JCT.","A58002",null,null,"COLUMBUS JCT."]
["A60502-ROCK RAPIDS #1","A60502",null,null,"ROCK RAPIDS #1"]
["A61002-EARLY CHAPEL-DAGGETT","A61002",null,null,"EARLY CHAPEL-DAGGETT"]
["A61006-92 QUARRY","A61006",null,null,"92 QUARRY"]
["A61012-EAST WINTERSET","A61012",null,null,"EAST WINTERSET"]
["A61013-WINTERSET WEST","A61013",null,null,"WINTERSET WEST"]
["A61016-PERU","A61016",null,null,"PERU"]
["A61024-PENN-DIXIE","A61024",null,null,"PENN-DIXIE"]
["A61032-EARLHAM-THRAILKILL","A61032",null,null,"EARLHAM-THRAILKILL"]
["A61036-MONARCH CEMENT OF IOWA","A61036",null,null,"MONARCH CEMENT OF IOWA"]
["A63002-DURHAM MINE","A63002",null,null,"DURHAM MINE"]
["A63002-DURHAM MINE","A63002",null,null,"DURHAM MINE"]
["A63010-S&S","A63010",null,null,"S&S"]
["A63502-BEAN PROPERTY","A63502",null,null,"BEAN PROPERTY"]
["A63512-NEW HARVEY","A63512",null,null,"NEW HARVEY"]
["A64002-FERGUSON","A64002",null,null,"FERGUSON"]
["A64002-FERGUSON","A64002",null,null,"FERGUSON"]
["A64002-FERGUSON","A64002",null,null,"FERGUSON"]
["A64004-LE GRAND","A64004",null,null,"LE GRAND"]
["A64004-LE GRAND","A64004",null,null,"LE GRAND"]
["A64502-MARSHALLTOWN","A64502",null,null,"MARSHALLTOWN"]
["A65006-MALVERN","A65006",null,null,"MALVERN"]
["A66002-DUENOW","A66002",null,null,"DUENOW"]
["A66002-DUENOW","A66002",null,null,"DUENOW"]
["A66016-LESCH","A66016",null,null,"LESCH"]
["A66018-DYNES","A66018",null,null,"DYNES"]
["A66020-ASPEL","A66020",null,null,"ASPEL"]
["A66022-WAGNER","A66022",null,null,"WAGNER"]
["A66024-GRUNDEL","A66024",null,null,"GRUNDEL"]
["A66026-KOSTER","A66026",null,null,"KOSTER"]
["A66028-WINTERS","A66028",null,null,"WINTERS"]
["A66516-BOERJAN","A66516",null,null,"BOERJAN"]
["A67502-RODNEY","A67502",null,null,"RODNEY"]
["A68004-EDDYVILLE-SOUTH","A68004",null,null,"EDDYVILLE-SOUTH"]
["A69002-STENNETT","A69002",null,null,"STENNETT"]
["A70002-MOSCOW","A70002",null,null,"MOSCOW"]
[{"$f":"CONCATENATE(B589,\"-\",E589)","v":"A70002-MOSCOW"},"A70002",null,null,"MOSCOW"]
["A70002-MOSCOW","A70002",null,null,"MOSCOW"]
["A70006-WILTON","A70006",null,null,"WILTON"]
["A70008-MONTPELIER","A70008",null,null,"MONTPELIER"]
["A70506-ACME","A70506",null,null,"ACME"]
["A72504-OCHEYEDAN","A72504",null,null,"OCHEYEDAN"]
["A72506-ASHTON","A72506",null,null,"ASHTON"]
["A72530-BOYD","A72530",null,null,"BOYD"]
["A72534-ASHTON-SEIVERT","A72534",null,null,"ASHTON-SEIVERT"]
["A73004-SHAMBAUGH","A73004",null,null,"SHAMBAUGH"]
["A73508-SHENANDOAH-CONNELL II","A73508",null,null,"SHENANDOAH-CONNELL II"]
["A74502-EMMETSBURG S&G","A74502",null,null,"EMMETSBURG S&G"]
["A75502-AKRON","A75502",null,null,"AKRON"]
["A75503-AKRON","A75503",null,null,"AKRON"]
["A75518-HINTON","A75518",null,null,"HINTON"]
["A76004-MOORE","A76004",null,null,"MOORE"]
["A77504-DENNY-JOHNSTON","A77504",null,null,"DENNY-JOHNSTON"]
["A77522-EDM #2-VANDALIA","A77522",null,null,"EDM #2-VANDALIA"]
["A77530-NORTH DES MOINES","A77530",null,null,"NORTH DES MOINES"]
["A77534-SAYLORVILLE SAND","A77534",null,null,"SAYLORVILLE SAND"]
["A78002-CRESCENT","A78002",null,null,"CRESCENT"]
["A78006-MACEDONIA-K&S","A78006",null,null,"MACEDONIA-K&S"]
["A78504-OAKLAND","A78504",null,null,"OAKLAND"]
["A79002-MALCOM MINE","A79002",null,null,"MALCOM MINE"]
["A80002-WATTERSON","A80002",null,null,"WATTERSON"]
["A81502-SACTON-LAKEVIEW","A81502",null,null,"SACTON-LAKEVIEW"]
["A81504-AUBURN","A81504",null,null,"AUBURN"]
["A81514-CARNARVON S&G","A81514",null,null,"CARNARVON S&G"]
["A81528-WALL LAKE","A81528",null,null,"WALL LAKE"]
["A81542-WALL LAKE BOYER","A81542",null,null,"WALL LAKE BOYER"]
["A81544-ULMER-MEISTER","A81544",null,null,"ULMER-MEISTER"]
["A81546-MEISTER","A81546",null,null,"MEISTER"]
["A82002-MCCAUSLAND(MC39)","A82002",null,null,"MCCAUSLAND(MC39)"]
["A82004-NEW LIBERTY(MC41)","A82004",null,null,"NEW LIBERTY(MC41)"]
["A82006-LECLAIRE(MC38)","A82006",null,null,"LECLAIRE(MC38)"]
["A82006-LECLAIRE(MC38)","A82006",null,null,"LECLAIRE(MC38)"]
["A82008-LINWOOD MINE","A82008",null,null,"LINWOOD MINE"]
["A82008-LINWOOD MINE","A82008",null,null,"LINWOOD MINE"]
["A82008-LINWOOD MINE","A82008",null,null,"LINWOOD MINE"]
["A82010-LINWOOD FORTY-SIX MINE","A82010",null,null,"LINWOOD FORTY-SIX MINE"]
["A83506-HARLAN-REINIG","A83506",null,null,"HARLAN-REINIG"]
["A84502-VANZEE","A84502",null,null,"VANZEE"]
["A84510-HAWARDEN-NORTH","A84510",null,null,"HAWARDEN-NORTH"]
["A84528-HIGMAN-CHATSWORTH","A84528",null,null,"HIGMAN-CHATSWORTH"]
["A84528-HIGMAN-CHATSWORTH","A84528",null,null,"HIGMAN-CHATSWORTH"]
["A84532-LASSON","A84532",null,null,"LASSON"]
["A84536-VANBEEK","A84536",null,null,"VANBEEK"]
["A84538-VAN'T HUL","A84538",null,null,"VAN'T HUL"]
["A85006-AMES MINE","A85006",null,null,"AMES MINE"]
["A85006-AMES MINE","A85006",null,null,"AMES MINE"]
["A85510-AMES SOUTH","A85510",null,null,"AMES SOUTH"]
["A86002-MONTOUR","A86002",null,null,"MONTOUR"]
["A86002-MONTOUR","A86002",null,null,"MONTOUR"]
["A88002-THAYER","A88002",null,null,"THAYER"]
["A89002-DOUDS MINE","A89002",null,null,"DOUDS MINE"]
["A89006-FARMINGTON-COMANCHE","A89006",null,null,"FARMINGTON-COMANCHE"]
["A89006-FARMINGTON-COMANCHE","A89006",null,null,"FARMINGTON-COMANCHE"]
["A89008-SELMA-GARDNER","A89008",null,null,"SELMA-GARDNER"]
["A92002-WEST CHESTER","A92002",null,null,"WEST CHESTER"]
["A92002-WEST CHESTER","A92002",null,null,"WEST CHESTER"]
["A92006-COPPOCK","A92006",null,null,"COPPOCK"]
["A92008-PEPPER-KEOTA FIELD","A92008",null,null,"PEPPER-KEOTA FIELD"]
["A92014-COPPOCK NORTH","A92014",null,null,"COPPOCK NORTH"]
["A94002-FT DODGE MINE","A94002",null,null,"FT DODGE MINE"]
[{"$f":"CONCATENATE(B653,\"-\",E653)","v":"A94008-BUSKE"},"A94008",null,null,"BUSKE"]
["A96002-KENDALLVILLE","A96002",null,null,"KENDALLVILLE"]
["A96003-BROWN","A96003",null,null,"BROWN"]
["A96004-HOVEY","A96004",null,null,"HOVEY"]
["A96005-MCGEE","A96005",null,null,"MCGEE"]
["A96007-JACKSON","A96007",null,null,"JACKSON"]
["A96011-GJETLEY","A96011",null,null,"GJETLEY"]
["A96013-YOUNG","A96013",null,null,"YOUNG"]
["A96015-MARTIN","A96015",null,null,"MARTIN"]
["A96017-SKYLINE B","A96017",null,null,"SKYLINE B"]
["A96019-ENGELHARDT","A96019",null,null,"ENGELHARDT"]
["A96022-MADISON #2","A96022",null,null,"MADISON #2"]
["A96040-LOCUST","A96040",null,null,"LOCUST"]
["A96046-SERSLAND-SMORSTAD","A96046",null,null,"SERSLAND-SMORSTAD"]
["A96048-LOVE #1","A96048",null,null,"LOVE #1"]
["A96049-LOVE #2","A96049",null,null,"LOVE #2"]
["A96050-BULLERMAN-FESTINA","A96050",null,null,"BULLERMAN-FESTINA"]
["A96052-ESTREM","A96052",null,null,"ESTREM"]
["A96054-HORSESHOE BEND","A96054",null,null,"HORSESHOE BEND"]
["A96060-BURR OAK","A96060",null,null,"BURR OAK"]
["A96064-STIKA","A96064",null,null,"STIKA"]
["A96072-MCKENNA NORTH","A96072",null,null,"MCKENNA NORTH"]
["A96074-OSSIAN","A96074",null,null,"OSSIAN"]
["A96078-BUSTA","A96078",null,null,"BUSTA"]
["A96082-CROW","A96082",null,null,"CROW"]
["A96084-YOUNG","A96084",null,null,"YOUNG"]
["A96090-MCKENNA SOUTH","A96090",null,null,"MCKENNA SOUTH"]
["A96092-HANSON","A96092",null,null,"HANSON"]
["A96094-CAROLAN","A96094",null,null,"CAROLAN"]
["A97502-CORRECTIONVILLE-BUCK","A97502",null,null,"CORRECTIONVILLE-BUCK"]
["A97516-ANTHON","A97516",null,null,"ANTHON"]
["A97518-SMITHLAND","A97518",null,null,"SMITHLAND"]
["A97538-ANTHON-WRIGHT","A97538",null,null,"ANTHON-WRIGHT"]
["A98002-HARRIS","A98002",null,null,"HARRIS"]
["A98002-HARRIS","A98002",null,null,"HARRIS"]
["A98002-HARRIS","A98002",null,null,"HARRIS"]
["A98010-FERTILE","A98010",null,null,"FERTILE"]
["A98010-FERTILE","A98010",null,null,"FERTILE"]
["A98014-STEVENS","A98014",null,null,"STEVENS"]
["A98014-STEVENS","A98014",null,null,"STEVENS"]
["A98014-STEVENS","A98014",null,null,"STEVENS"]
["A98016-EMIL OLSON-BOLTON","A98016",null,null,"EMIL OLSON-BOLTON"]
["A98016-EMIL OLSON-BOLTON","A98016",null,null,"EMIL OLSON-BOLTON"]
["A98020-TRENHAILE","A98020",null,null,"TRENHAILE"]
["A98502-RANDALL TRANSIT MIX","A98502",null,null,"RANDALL TRANSIT MIX"]
["A98504-FERTILE","A98504",null,null,"FERTILE"]
["A99002-VOSS","A99002",null,null,"VOSS"]
["A99502-WRIGHT","A99502",null,null,"WRIGHT"]
["AIL002-BIGGSVILLE","AIL002",null,null,"BIGGSVILLE"]
["AIL006-MIDWAY(MC45)","AIL006",null,null,"MIDWAY(MC45)"]
["AIL010-ALLIED(MC30)","AIL010",null,null,"ALLIED(MC30)"]
["AIL010-ALLIED(MC30)","AIL010",null,null,"ALLIED(MC30)"]
["AIL010-ALLIED(MC30)","AIL010",null,null,"ALLIED(MC30)"]
["AIL014-DALLAS CITY","AIL014",null,null,"DALLAS CITY"]
["AIL016-CLEVELAND(MC31)","AIL016",null,null,"CLEVELAND(MC31)"]
["AIL020-HAMILTON","AIL020",null,null,"HAMILTON"]
["AIL020-HAMILTON","AIL020",null,null,"HAMILTON"]
["AIL040-MONMOUTH","AIL040",null,null,"MONMOUTH"]
["AIL042-SAVANNA","AIL042",null,null,"SAVANNA"]
["AIL502-ALBANY(MC@511)","AIL502",null,null,"ALBANY(MC@511)"]
["AIL502-ALBANY(MC@511)","AIL502",null,null,"ALBANY(MC@511)"]
["AIL504-BIG ISLAND(MC51)","AIL504",null,null,"BIG ISLAND(MC51)"]
["AIL504-BIG ISLAND(MC51)","AIL504",null,null,"BIG ISLAND(MC51)"]
["AIL508-BARSTOW(MC52)","AIL508",null,null,"BARSTOW(MC52)"]
[{"$f":"CONCATENATE(B717,\"-\",E717)","v":"AIL520-CORDOVA(MC14@508)"},"AIL520",null,null,"CORDOVA(MC14@508)"]
["AKS004-EUDORA","AKS004",null,null,"EUDORA"]
["AMN004-POOL HILL.","AMN004",null,null,"POOL HILL."]
["AMN006-OTTERNESS","AMN006",null,null,"OTTERNESS"]
["AMN008-QUARTZITE","AMN008",null,null,"QUARTZITE"]
["AMN010-ST CLOUD-GRANITE","AMN010",null,null,"ST CLOUD-GRANITE"]
["AMN014-BIG SPRINGS","AMN014",null,null,"BIG SPRINGS"]
["AMN018-GRAND MEADOW","AMN018",null,null,"GRAND MEADOW"]
["AMN024-YELLOW MEDICINE","AMN024",null,null,"YELLOW MEDICINE"]
["AMN026-BIG STONE","AMN026",null,null,"BIG STONE"]
["AMN030-GENGLER","AMN030",null,null,"GENGLER"]
["AMN032-COTTONWOOD","AMN032",null,null,"COTTONWOOD"]
["AMN034-ENGRAV","AMN034",null,null,"ENGRAV"]
["AMN042-SCOTT","AMN042",null,null,"SCOTT"]
["AMN044-BIESANZ","AMN044",null,null,"BIESANZ"]
["AMN046-43 QUARRY","AMN046",null,null,"43 QUARRY"]
["AMN048-RED ROCK","AMN048",null,null,"RED ROCK"]
["AMN050-JASPER STONE","AMN050",null,null,"JASPER STONE"]
["AMN052-ABNET","AMN052",null,null,"ABNET"]
["AMN054-HARDROCK","AMN054",null,null,"HARDROCK"]
["AMN522-PRAIRIE ISLAND #3","AMN522",null,null,"PRAIRIE ISLAND #3"]
["AMN536-ELK RIVER","AMN536",null,null,"ELK RIVER"]
["AMN544-LAKEVILLE","AMN544",null,null,"LAKEVILLE"]
["AMN548-HENDERSON","AMN548",null,null,"HENDERSON"]
["AMN550-SACHS","AMN550",null,null,"SACHS"]
["AMN558-ST CROIX","AMN558",null,null,"ST CROIX"]
["AMN560-ROSEMOUNT","AMN560",null,null,"ROSEMOUNT"]
["AMN564-HASTINGS-MAR FARMS","AMN564",null,null,"HASTINGS-MAR FARMS"]
["AMN566-ELK RIVER","AMN566",null,null,"ELK RIVER"]
["AMN568-EMPIRE","AMN568",null,null,"EMPIRE"]
["AMN570-WINONA AGGREGATE","AMN570",null,null,"WINONA AGGREGATE"]
["AMO002-KAHOKA","AMO002",null,null,"KAHOKA"]
["AMO012-DR. JEFFERIES","AMO012",null,null,"DR. JEFFERIES"]
["AMO018-ROUTE C","AMO018",null,null,"ROUTE C"]
["AMO022-IRON MT","AMO022",null,null,"IRON MT"]
["AMO024-HUNTINGTON","AMO024",null,null,"HUNTINGTON"]
["AMO030-EDINA","AMO030",null,null,"EDINA"]
["AMO032-GRAHAM","AMO032",null,null,"GRAHAM"]
["AMO040-SOUTH ALLENDALE","AMO040",null,null,"SOUTH ALLENDALE"]
["AMO044-NEW LONDON","AMO044",null,null,"NEW LONDON"]
["AMO046-BETHANY","AMO046",null,null,"BETHANY"]
["AMO048-BREIT","AMO048",null,null,"BREIT"]
["AMO050-PRINCETON","AMO050",null,null,"PRINCETON"]
["AMO054-BUTLER HILL","AMO054",null,null,"BUTLER HILL"]
["AMO056-TRENTON","AMO056",null,null,"TRENTON"]
["AMO058-PIT #3","AMO058",null,null,"PIT #3"]
["AMO060-RANDOLPH MINE","AMO060",null,null,"RANDOLPH MINE"]
["ANE002-WEEPING WATER MINE","ANE002",null,null,"WEEPING WATER MINE"]
["ANE004-WEEPING WATER MINE","ANE004",null,null,"WEEPING WATER MINE"]
["ANE010-FT CALHOUN","ANE010",null,null,"FT CALHOUN"]
["ANE012-SPRINGFIELD","ANE012",null,null,"SPRINGFIELD"]
["ANE502-CULLOM  #5","ANE502",null,null,"CULLOM  #5"]
["ANE504-WATERLOO #40","ANE504",null,null,"WATERLOO #40"]
["ANE514-OREAPOLIS #8","ANE514",null,null,"OREAPOLIS #8"]
["ANE534-SPRINGFIELD #3","ANE534",null,null,"SPRINGFIELD #3"]
["ANE542-PLANT #47","ANE542",null,null,"PLANT #47"]
["ANE544-VALLEY","ANE544",null,null,"VALLEY"]
["ANE548-PLANT #6","ANE548",null,null,"PLANT #6"]
["ANE550-PLANT #50","ANE550",null,null,"PLANT #50"]
["ANE554-PLANT #7","ANE554",null,null,"PLANT #7"]
["ANE556-CULLOM #3","ANE556",null,null,"CULLOM #3"]
["ANE560-PLANT #47B","ANE560",null,null,"PLANT #47B"]
["ANE562-PLANT #51","ANE562",null,null,"PLANT #51"]
["ANE564-KMG","ANE564",null,null,"KMG"]
[{"$f":"CONCATENATE(B781,\"-\",E781)","v":"ANE566-PLANT #52"},"ANE566",null,null,"PLANT #52"]
["ASD002-DELL RAPIDS-EAST","ASD002",null,null,"DELL RAPIDS-EAST"]
["ASD004-SIOUX FALLS QUARTZITE","ASD004",null,null,"SIOUX FALLS QUARTZITE"]
["ASD006-EAST SIOUX","ASD006",null,null,"EAST SIOUX"]
["ASD008-SPENCER","ASD008",null,null,"SPENCER"]
["ASD010-DELL RAPIDS WEST, MINNEHAHA CO","ASD010",null,null,"DELL RAPIDS WEST, MINNEHAHA CO"]
["ASD502-BOYER","ASD502",null,null,"BOYER"]
["ASD526-CORSON","ASD526",null,null,"CORSON"]
["AWI004-ROCK SPRINGS","AWI004",null,null,"ROCK SPRINGS"]
["AWI022-KINGS BLUFF","AWI022",null,null,"KINGS BLUFF"]
["AWI030-HAVERLAND","AWI030",null,null,"HAVERLAND"]
["AWI036-TORK","AWI036",null,null,"TORK"]
["AWI038-ATHENS","AWI038",null,null,"ATHENS"]
["AWI040-JACKSON COUNTY IRON MINE","AWI040",null,null,"JACKSON COUNTY IRON MINE"]
["AWI042-CROSBY","AWI042",null,null,"CROSBY"]
["AWI044-SLAMA","AWI044",null,null,"SLAMA"]
["AWI046-HAHN","AWI046",null,null,"HAHN"]
["AWI048-HOGAN","AWI048",null,null,"HOGAN"]
["AWI502-PRAIRIE DU CHIEN","AWI502",null,null,"PRAIRIE DU CHIEN"]
["AWI504-VOGT FARM","AWI504",null,null,"VOGT FARM"]
["AWI514-HAGER CITY","AWI514",null,null,"HAGER CITY"]
["AWI524-HAEF","AWI524",null,null,"HAEF"]
["AWI528-NELSON","AWI528",null,null,"NELSON"]
[]
[]
[]
[{"$f":"CONCATENATE(B807,\"-\",G807)","v":"A01002-MENLO"},"A01002",null,null,null,null,"MENLO"]
["A01008-JEFFERSON","A01008",null,null,null,null,"JEFFERSON"]
["A02002-MT ETNA","A02002",null,null,null,null,"MT ETNA"]
["A02004-CORNING","A02004",null,null,null,null,"CORNING"]
["A03008-MCCABE","A03008",null,null,null,null,"MCCABE"]
["A03010-RUDE","A03010",null,null,null,null,"RUDE"]
["A03022-LIVINGOOD","A03022",null,null,null,null,"LIVINGOOD"]
["A03026-BYRNES","A03026",null,null,null,null,"BYRNES"]
["A03028-WELPER-JOHNSON","A03028",null,null,null,null,"WELPER-JOHNSON"]
["A03036-SWENSON","A03036",null,null,null,null,"SWENSON"]
["A03042-CHURCHTOWN","A03042",null,null,null,null,"CHURCHTOWN"]
["A03052-ROSSVILLE","A03052",null,null,null,null,"ROSSVILLE"]
["A03054-WEST RIDGE","A03054",null,null,null,null,"WEST RIDGE"]
["A03058-ELON","A03058",null,null,null,null,"ELON"]
["A03064-RAINBOW","A03064",null,null,null,null,"RAINBOW"]
["A03068-JEFFERSON","A03068",null,null,null,null,"JEFFERSON"]
["A03070-BULMAN","A03070",null,null,null,null,"BULMAN"]
["A03072-STRONG","A03072",null,null,null,null,"STRONG"]
["A03502-HARPERS FERRY","A03502",null,null,null,null,"HARPERS FERRY"]
["A03506-HAMMELL-BOONIES","A03506",null,null,null,null,"HAMMELL-BOONIES"]
["A03518-IVERSON","A03518",null,null,null,null,"IVERSON"]
["A04018-CLARKDALE #8","A04018",null,null,null,null,"CLARKDALE #8"]
["A04020-PLANO","A04020",null,null,null,null,"PLANO"]
["A05506-EXIRA","A05506",null,null,null,null,"EXIRA"]
["A06014-VINTON-MILROY","A06014",null,null,null,null,"VINTON-MILROY"]
["A06016-COOTS","A06016",null,null,null,null,"COOTS"]
["A06502-VINTON-MILROY","A06502",null,null,null,null,"VINTON-MILROY"]
["A06504-COOTS SAND/VINTON","A06504",null,null,null,null,"COOTS SAND/VINTON"]
["A06506-PORK CHOP","A06506",null,null,null,null,"PORK CHOP"]
["A07022-MESSERLY","A07022",null,null,null,null,"MESSERLY"]
["A07504-WATERLOO SAND","A07504",null,null,null,null,"WATERLOO SAND"]
["A07506-ASPRO","A07506",null,null,null,null,"ASPRO"]
["A07508-GILBERTVILLE","A07508",null,null,null,null,"GILBERTVILLE"]
["A07512-ZEIEN S&G","A07512",null,null,null,null,"ZEIEN S&G"]
["A07518-JANESVILLE","A07518",null,null,null,null,"JANESVILLE"]
["A08504-JENSEN","A08504",null,null,null,null,"JENSEN"]
["A08526-POWERS","A08526",null,null,null,null,"POWERS"]
["A08528-LEININGER","A08528",null,null,null,null,"LEININGER"]
["A09002-FREDERIKA","A09002",null,null,null,null,"FREDERIKA"]
["A09008-DENVER #2","A09008",null,null,null,null,"DENVER #2"]
["A09504-NOLTE","A09504",null,null,null,null,"NOLTE"]
["A09508-TRIPOLI-PLATTE","A09508",null,null,null,null,"TRIPOLI-PLATTE"]
["A09510-PLAINFIELD/ADAMS","A09510",null,null,null,null,"PLAINFIELD/ADAMS"]
["A09512-BOEVERS","A09512",null,null,null,null,"BOEVERS"]
["A10012-INDEPENDENCE","A10012",null,null,null,null,"INDEPENDENCE"]
["A10014-OELWEIN #1","A10014",null,null,null,null,"OELWEIN #1"]
["A10024-RASMUSSEN #2","A10024",null,null,null,null,"RASMUSSEN #2"]
["A10026-BRANDON","A10026",null,null,null,null,"BRANDON"]
["A10028-HERTZBERGER","A10028",null,null,null,null,"HERTZBERGER"]
["A10032-SELLS","A10032",null,null,null,null,"SELLS"]
["A10040-ZUPKE-OELWEIN","A10040",null,null,null,null,"ZUPKE-OELWEIN"]
["A10042-BRANDON I-380","A10042",null,null,null,null,"BRANDON I-380"]
["A10504-WARD","A10504",null,null,null,null,"WARD"]
["A10506-GREENLEY","A10506",null,null,null,null,"GREENLEY"]
["A10510-HUFFMAN","A10510",null,null,null,null,"HUFFMAN"]
["A10514-HOLLERMAN","A10514",null,null,null,null,"HOLLERMAN"]
["A10516-MILLER","A10516",null,null,null,null,"MILLER"]
["A10518-YEAROUS","A10518",null,null,null,null,"YEAROUS"]
["A10520-BROOKS","A10520",null,null,null,null,"BROOKS"]
["A10522-NIEMANN-DECKER","A10522",null,null,null,null,"NIEMANN-DECKER"]
["A10524-CRAWFORD","A10524",null,null,null,null,"CRAWFORD"]
["A11512-MARATHON","A11512",null,null,null,null,"MARATHON"]
["A11514-OATMAN","A11514",null,null,null,null,"OATMAN"]
["A11516-SIOUX RAPIDS","A11516",null,null,null,null,"SIOUX RAPIDS"]
[{"$f":"CONCATENATE(B871,\"-\",G871)","v":"A11518-MOLGAARD"},"A11518",null,null,null,null,"MOLGAARD"]
["A11520-WETHERELL","A11520",null,null,null,null,"WETHERELL"]
["A12004-LUBBEN","A12004",null,null,null,null,"LUBBEN"]
["A12008-FLORRY-STEERE","A12008",null,null,null,null,"FLORRY-STEERE"]
["A12010-CLARKSVILLE-ENGLE","A12010",null,null,null,null,"CLARKSVILLE-ENGLE"]
["A12014-OLTMANN","A12014",null,null,null,null,"OLTMANN"]
["A12016-WIEGMANN-BRISTOW","A12016",null,null,null,null,"WIEGMANN-BRISTOW"]
["A12018-NEYMEYER","A12018",null,null,null,null,"NEYMEYER"]
["A12020-BRUNS #2","A12020",null,null,null,null,"BRUNS #2"]
["A12502-CLARKSVILLE","A12502",null,null,null,null,"CLARKSVILLE"]
["A12516-JENSEN","A12516",null,null,null,null,"JENSEN"]
["A12518-SHELL ROCK-ADAMS","A12518",null,null,null,null,"SHELL ROCK-ADAMS"]
["A12520-PARKERSBURG","A12520",null,null,null,null,"PARKERSBURG"]
["A12522-HOBSON","A12522",null,null,null,null,"HOBSON"]
["A13502-KRUSE","A13502",null,null,null,null,"KRUSE"]
["A13504-JENSEN","A13504",null,null,null,null,"JENSEN"]
["A13506-MOHR","A13506",null,null,null,null,"MOHR"]
["A13508-PACKER","A13508",null,null,null,null,"PACKER"]
["A14504-REINHART","A14504",null,null,null,null,"REINHART"]
["A14510-LANESBORO","A14510",null,null,null,null,"LANESBORO"]
["A14514-MACKE","A14514",null,null,null,null,"MACKE"]
["A14516-RICHLAND","A14516",null,null,null,null,"RICHLAND"]
["A14518-MILLER","A14518",null,null,null,null,"MILLER"]
["A15004-LEWIS","A15004",null,null,null,null,"LEWIS"]
["A15008-ATLANTIC MINE","A15008",null,null,null,null,"ATLANTIC MINE"]
["A16014-TOWNSEND","A16014",null,null,null,null,"TOWNSEND"]
["A16026-PEDEN #2","A16026",null,null,null,null,"PEDEN #2"]
["A16502-SHARPLISS","A16502",null,null,null,null,"SHARPLISS"]
["A16506-ONION GROVE","A16506",null,null,null,null,"ONION GROVE"]
["A16508-MASSILLON","A16508",null,null,null,null,"MASSILLON"]
["A16510-CEDAR BLUFF","A16510",null,null,null,null,"CEDAR BLUFF"]
["A17024-RIVERVIEW","A17024",null,null,null,null,"RIVERVIEW"]
["A17514-HOLCIM SAND","A17514",null,null,null,null,"HOLCIM SAND"]
["A17518-AIRPORT","A17518",null,null,null,null,"AIRPORT"]
["A17520-TUTTLE","A17520",null,null,null,null,"TUTTLE"]
["A18506-CHEROKEE SOUTH","A18506",null,null,null,null,"CHEROKEE SOUTH"]
["A18514-LARRABEE-MONTGOMERY","A18514",null,null,null,null,"LARRABEE-MONTGOMERY"]
["A18526-CHEROKEE NORTH","A18526",null,null,null,null,"CHEROKEE NORTH"]
["A18528-WASHTA","A18528",null,null,null,null,"WASHTA"]
["A18534-NELSON","A18534",null,null,null,null,"NELSON"]
["A19004-DEERFIELD-MAHONEY","A19004",null,null,null,null,"DEERFIELD-MAHONEY"]
["A19008-BOICE","A19008",null,null,null,null,"BOICE"]
["A19508-BUSTA","A19508",null,null,null,null,"BUSTA"]
["A19512-PEARL ROCK","A19512",null,null,null,null,"PEARL ROCK"]
["A19514-NASHUA","A19514",null,null,null,null,"NASHUA"]
["A19516-REWOLDT","A19516",null,null,null,null,"REWOLDT"]
["A19520-ROSONKE","A19520",null,null,null,null,"ROSONKE"]
["A19522-BUCKY'S","A19522",null,null,null,null,"BUCKY'S"]
["A19524-REISNER","A19524",null,null,null,null,"REISNER"]
["A20002-OSCEOLA","A20002",null,null,null,null,"OSCEOLA"]
["A21506-EVERLY","A21506",null,null,null,null,"EVERLY"]
["A21516-SPENCER #1","A21516",null,null,null,null,"SPENCER #1"]
["A21518-SPENCER #2","A21518",null,null,null,null,"SPENCER #2"]
["A21526-CLAY COUNTY","A21526",null,null,null,null,"CLAY COUNTY"]
["A21528-GOEKEN","A21528",null,null,null,null,"GOEKEN"]
["A21530-BRAUNSCHWEIG","A21530",null,null,null,null,"BRAUNSCHWEIG"]
["A21532-ELSER","A21532",null,null,null,null,"ELSER"]
["A21534-CLARK EVERLY","A21534",null,null,null,null,"CLARK EVERLY"]
["A21536-GILLETT GROVE","A21536",null,null,null,null,"GILLETT GROVE"]
["A22002-TWIN ROCK-SCHRADER","A22002",null,null,null,null,"TWIN ROCK-SCHRADER"]
["A22008-ANDEREGG","A22008",null,null,null,null,"ANDEREGG"]
["A22018-ZURCHER","A22018",null,null,null,null,"ZURCHER"]
["A22024-MIELKES QUARRY","A22024",null,null,null,null,"MIELKES QUARRY"]
["A22032-WELLMAN","A22032",null,null,null,null,"WELLMAN"]
[{"$f":"CONCATENATE(B935,\"-\",G935)","v":"A22042-MORAREND"},"A22042",null,null,null,null,"MORAREND"]
["A22044-BOGE","A22044",null,null,null,null,"BOGE"]
["A22048-TUCKER","A22048",null,null,null,null,"TUCKER"]
["A22058-ST. OLAF","A22058",null,null,null,null,"ST. OLAF"]
["A22076-LARSON","A22076",null,null,null,null,"LARSON"]
["A22080-HILINE","A22080",null,null,null,null,"HILINE"]
["A22086-WILLIE","A22086",null,null,null,null,"WILLIE"]
["A22088-KEPPLER","A22088",null,null,null,null,"KEPPLER"]
["A22092-LARSON","A22092",null,null,null,null,"LARSON"]
["A22510-BENTE","A22510",null,null,null,null,"BENTE"]
["A22520-WELTERLEN","A22520",null,null,null,null,"WELTERLEN"]
["A22522-MOYNA","A22522",null,null,null,null,"MOYNA"]
["A23010-GOOSE LAKE","A23010",null,null,null,null,"GOOSE LAKE"]
["A23012-TEEDS GROVE","A23012",null,null,null,null,"TEEDS GROVE"]
["A23016-LYONS","A23016",null,null,null,null,"LYONS"]
["A23026-MILL CREEK","A23026",null,null,null,null,"MILL CREEK"]
["A23028-DELMAR","A23028",null,null,null,null,"DELMAR"]
["A23030-EDON VALLEY","A23030",null,null,null,null,"EDON VALLEY"]
["A23032-ANDERSON","A23032",null,null,null,null,"ANDERSON"]
["A23502-DOYLE","A23502",null,null,null,null,"DOYLE"]
["A23504-BEHR","A23504",null,null,null,null,"BEHR"]
["A23506-SCHNECKLOTH","A23506",null,null,null,null,"SCHNECKLOTH"]
["A23508-GATEWAY","A23508",null,null,null,null,"GATEWAY"]
["A23510-SHAFFTON","A23510",null,null,null,null,"SHAFFTON"]
["A23514-ANDERSON","A23514",null,null,null,null,"ANDERSON"]
["A23516-OLSON","A23516",null,null,null,null,"OLSON"]
["A24512-DUNLAP","A24512",null,null,null,null,"DUNLAP"]
["A25510-PERRY","A25510",null,null,null,null,"PERRY"]
["A25514-BOONEVILLE","A25514",null,null,null,null,"BOONEVILLE"]
["A25516-VAN METER SOUTH","A25516",null,null,null,null,"VAN METER SOUTH"]
["A25518-RACCOON RIVER SAND","A25518",null,null,null,null,"RACCOON RIVER SAND"]
["A26502-ELDON-FRANKLIN","A26502",null,null,null,null,"ELDON-FRANKLIN"]
["A27002-GRAND RIVER","A27002",null,null,null,null,"GRAND RIVER"]
["A27008-DECATUR","A27008",null,null,null,null,"DECATUR"]
["A28030-HOPKINTON","A28030",null,null,null,null,"HOPKINTON"]
["A28032-SCHNITTJER-DELHI","A28032",null,null,null,null,"SCHNITTJER-DELHI"]
["A28046-PINS","A28046",null,null,null,null,"PINS"]
["A28050-BUCK CREEK","A28050",null,null,null,null,"BUCK CREEK"]
["A28056-THORPE","A28056",null,null,null,null,"THORPE"]
["A28058-ROSSOW/MANCHESTER","A28058",null,null,null,null,"ROSSOW/MANCHESTER"]
["A28504-TEGLER","A28504",null,null,null,null,"TEGLER"]
["A28510-LOGAN","A28510",null,null,null,null,"LOGAN"]
["A28520-MANCHESTER","A28520",null,null,null,null,"MANCHESTER"]
["A28524-LAKE DELHI","A28524",null,null,null,null,"LAKE DELHI"]
["A29012-GEODE","A29012",null,null,null,null,"GEODE"]
["A29502-SPRING GROVE","A29502",null,null,null,null,"SPRING GROVE"]
["A30504-ROHLIN","A30504",null,null,null,null,"ROHLIN"]
["A30508-FOSTORIA/LOST","A30508",null,null,null,null,"FOSTORIA/LOST"]
["A30510-WEDEKING","A30510",null,null,null,null,"WEDEKING"]
["A30512-WESTPORT","A30512",null,null,null,null,"WESTPORT"]
["A30514-MILFORD/LEITH","A30514",null,null,null,null,"MILFORD/LEITH"]
["A30516-CROSBY","A30516",null,null,null,null,"CROSBY"]
["A30518-SMITH","A30518",null,null,null,null,"SMITH"]
["A30520-MILFORD/DERNER","A30520",null,null,null,null,"MILFORD/DERNER"]
["A30522-FODNESS","A30522",null,null,null,null,"FODNESS"]
["A30524-COHRS/DERNER","A30524",null,null,null,null,"COHRS/DERNER"]
["A30526-MILL CREEK","A30526",null,null,null,null,"MILL CREEK"]
["A31030-KEMP","A31030",null,null,null,null,"KEMP"]
["A31036-BALLTOWN","A31036",null,null,null,null,"BALLTOWN"]
["A31040-KENNEDY","A31040",null,null,null,null,"KENNEDY"]
["A31042-GANSEN","A31042",null,null,null,null,"GANSEN"]
["A31058-HOLY CROSS","A31058",null,null,null,null,"HOLY CROSS"]
["A31070-GREEN VALLEY","A31070",null,null,null,null,"GREEN VALLEY"]
["A31504-SAUSER","A31504",null,null,null,null,"SAUSER"]
[{"$f":"CONCATENATE(B999,\"-\",G999)","v":"A31512-BURKLE"},"A31512",null,null,null,null,"BURKLE"]
["A31514-FILLMORE","A31514",null,null,null,null,"FILLMORE"]
["A31516-CASCADE-LOCHER","A31516",null,null,null,null,"CASCADE-LOCHER"]
["A31518-MAIERS","A31518",null,null,null,null,"MAIERS"]
["A32502-ESTHERVILLE","A32502",null,null,null,null,"ESTHERVILLE"]
["A32506-FREY","A32506",null,null,null,null,"FREY"]
["A32522-OLD ESTHERVILLE S&G","A32522",null,null,null,null,"OLD ESTHERVILLE S&G"]
["A32524-PETERSON","A32524",null,null,null,null,"PETERSON"]
["A32530-ESTHERVILLE/WHITE","A32530",null,null,null,null,"ESTHERVILLE/WHITE"]
["A32534-ENERSON","A32534",null,null,null,null,"ENERSON"]
["A32538-JENSEN","A32538",null,null,null,null,"JENSEN"]
["A32540-FISHER","A32540",null,null,null,null,"FISHER"]
["A32542-GRAETTINGER","A32542",null,null,null,null,"GRAETTINGER"]
["A32544-ANDERSON","A32544",null,null,null,null,"ANDERSON"]
["A32546-TROPHY RIDGE","A32546",null,null,null,null,"TROPHY RIDGE"]
["A32548-LILLAND","A32548",null,null,null,null,"LILLAND"]
["A33004-HOUG","A33004",null,null,null,null,"HOUG"]
["A33010-VOSHELL","A33010",null,null,null,null,"VOSHELL"]
["A33018-FAIRBANK","A33018",null,null,null,null,"FAIRBANK"]
["A33020-YEAROUS","A33020",null,null,null,null,"YEAROUS"]
["A33026-LYNCH","A33026",null,null,null,null,"LYNCH"]
["A33032-LANDIS","A33032",null,null,null,null,"LANDIS"]
["A33034-MCDONOUGH","A33034",null,null,null,null,"MCDONOUGH"]
["A33036-GRAHAM-HAWKEYE","A33036",null,null,null,null,"GRAHAM-HAWKEYE"]
["A33040-SINNOTT","A33040",null,null,null,null,"SINNOTT"]
["A33042-LEHMAN","A33042",null,null,null,null,"LEHMAN"]
["A33044-FAYETTE 93","A33044",null,null,null,null,"FAYETTE 93"]
["A33506-ALPHA","A33506",null,null,null,null,"ALPHA"]
["A33508-DURSCHER","A33508",null,null,null,null,"DURSCHER"]
["A33510-RANDALIA","A33510",null,null,null,null,"RANDALIA"]
["A33512-WADENA","A33512",null,null,null,null,"WADENA"]
["A33518-BASSETT","A33518",null,null,null,null,"BASSETT"]
["A33520-OELWEIN SAND","A33520",null,null,null,null,"OELWEIN SAND"]
["A33522-PAPE","A33522",null,null,null,null,"PAPE"]
["A33524-ROGERS","A33524",null,null,null,null,"ROGERS"]
["A33526-ELDORADO","A33526",null,null,null,null,"ELDORADO"]
["A33528-KASEMEIER","A33528",null,null,null,null,"KASEMEIER"]
["A34006-JOHLAS","A34006",null,null,null,null,"JOHLAS"]
["A34008-WARNHOLTZ","A34008",null,null,null,null,"WARNHOLTZ"]
["A34012-WILLIAMS","A34012",null,null,null,null,"WILLIAMS"]
["A34014-HANNMANN","A34014",null,null,null,null,"HANNMANN"]
["A34020-JENSEN","A34020",null,null,null,null,"JENSEN"]
["A34502-ROCKFORD","A34502",null,null,null,null,"ROCKFORD"]
["A34506-LENT","A34506",null,null,null,null,"LENT"]
["A34516-CEDAR ACRE RESORTS","A34516",null,null,null,null,"CEDAR ACRE RESORTS"]
["A34518-ENABNIT","A34518",null,null,null,null,"ENABNIT"]
["A34520-Foothill","A34520",null,null,null,null,"Foothill"]
["A34522-Rottinghaus","A34522",null,null,null,null,"Rottinghaus"]
["A35002-DOWS","A35002",null,null,null,null,"DOWS"]
["A35016-AYRES","A35016",null,null,null,null,"AYRES"]
["A35502-GENEVA","A35502",null,null,null,null,"GENEVA"]
["A35518-REINKE","A35518",null,null,null,null,"REINKE"]
["A35520-BRANDT","A35520",null,null,null,null,"BRANDT"]
["A35522-MCDOWELL SAND","A35522",null,null,null,null,"MCDOWELL SAND"]
["A35524-JEST POND","A35524",null,null,null,null,"JEST POND"]
["A36002-THURMAN","A36002",null,null,null,null,"THURMAN"]
["A37504-JEFFERSON","A37504",null,null,null,null,"JEFFERSON"]
["A37514-WRIGHT","A37514",null,null,null,null,"WRIGHT"]
["A37520-HAMILTON","A37520",null,null,null,null,"HAMILTON"]
["A37522-HAUPERT","A37522",null,null,null,null,"HAUPERT"]
["A37524-DAVIS","A37524",null,null,null,null,"DAVIS"]
["A37526-Jefferson-Clarke","A37526",null,null,null,null,"Jefferson-Clarke"]
["A37528-MUIR","A37528",null,null,null,null,"MUIR"]
["A37530-BEDROCK #3","A37530",null,null,null,null,"BEDROCK #3"]
[{"$f":"CONCATENATE(B1063,\"-\",G1063)","v":"A37532-MEARS"},"A37532",null,null,null,null,"MEARS"]
["A38504-HERONIMOUS","A38504",null,null,null,null,"HERONIMOUS"]
["A38506-MEESTER","A38506",null,null,null,null,"MEESTER"]
["A39508-L & L","A39508",null,null,null,null,"L & L"]
["A39510-WILLOW CREEK SAND","A39510",null,null,null,null,"WILLOW CREEK SAND"]
["A40512-ANDERSON","A40512",null,null,null,null,"ANDERSON"]
["A41504-HUTCHINS","A41504",null,null,null,null,"HUTCHINS"]
["A41506-KLEMME","A41506",null,null,null,null,"KLEMME"]
["A41518-AUSTIN","A41518",null,null,null,null,"AUSTIN"]
["A42004-GIFFORD","A42004",null,null,null,null,"GIFFORD"]
["A42512-HARDIN AGGREGATES","A42512",null,null,null,null,"HARDIN AGGREGATES"]
["A42524-GRIFFEL","A42524",null,null,null,null,"GRIFFEL"]
["A42528-LLOYD","A42528",null,null,null,null,"LLOYD"]
["A42532-H & M FARMS","A42532",null,null,null,null,"H & M FARMS"]
["A43002-LOGAN","A43002",null,null,null,null,"LOGAN"]
["A43512-WOODBINE-MCCANN","A43512",null,null,null,null,"WOODBINE-MCCANN"]
["A44002-KINNEY & SONS","A44002",null,null,null,null,"KINNEY & SONS"]
["A44004-MT PLEASANT NORTH","A44004",null,null,null,null,"MT PLEASANT NORTH"]
["A44008-MT PLEASANT","A44008",null,null,null,null,"MT PLEASANT"]
["A44502-NORTH ROME","A44502",null,null,null,null,"NORTH ROME"]
["A44504-ENSMINGER-ROME","A44504",null,null,null,null,"ENSMINGER-ROME"]
["A44506-COPPOCK SAND","A44506",null,null,null,null,"COPPOCK SAND"]
["A45004-STINGER","A45004",null,null,null,null,"STINGER"]
["A45014-O'DONNEL","A45014",null,null,null,null,"O'DONNEL"]
["A45018-LE ROY","A45018",null,null,null,null,"LE ROY"]
["A45030-DIEKEN-TANK","A45030",null,null,null,null,"DIEKEN-TANK"]
["A45032-KITCHEN","A45032",null,null,null,null,"KITCHEN"]
["A45502-MAPLE LEAF-POTTER","A45502",null,null,null,null,"MAPLE LEAF-POTTER"]
["A45504-ECKERMAN","A45504",null,null,null,null,"ECKERMAN"]
["A45508-SOVEREIGN","A45508",null,null,null,null,"SOVEREIGN"]
["A45516-FREIDERICH","A45516",null,null,null,null,"FREIDERICH"]
["A45518-ELMA","A45518",null,null,null,null,"ELMA"]
["A45520-HOOVER","A45520",null,null,null,null,"HOOVER"]
["A46016-ERICKSON","A46016",null,null,null,null,"ERICKSON"]
["A46512-WARREN","A46512",null,null,null,null,"WARREN"]
["A46516-ERICKSON","A46516",null,null,null,null,"ERICKSON"]
["A46518-PEDERSEN","A46518",null,null,null,null,"PEDERSEN"]
["A47502-BATTLE CREEK","A47502",null,null,null,null,"BATTLE CREEK"]
["A47504-CROCKER","A47504",null,null,null,null,"CROCKER"]
["A48506-MARENGO","A48506",null,null,null,null,"MARENGO"]
["A48508-DISTERHOFT","A48508",null,null,null,null,"DISTERHOFT"]
["A49004-LAMOTT","A49004",null,null,null,null,"LAMOTT"]
["A49016-WEIS","A49016",null,null,null,null,"WEIS"]
["A49022-BELLEVUE","A49022",null,null,null,null,"BELLEVUE"]
["A49030-SPRINGBROOK","A49030",null,null,null,null,"SPRINGBROOK"]
["A49040-JOINERVILLE-HAMANN","A49040",null,null,null,null,"JOINERVILLE-HAMANN"]
["A49042-PETERSON","A49042",null,null,null,null,"PETERSON"]
["A49044-FRANK","A49044",null,null,null,null,"FRANK"]
["A49046-ROWAN","A49046",null,null,null,null,"ROWAN"]
["A49062-JOHNSON","A49062",null,null,null,null,"JOHNSON"]
["A49064-VEACH","A49064",null,null,null,null,"VEACH"]
["A49066-MOREHEAD","A49066",null,null,null,null,"MOREHEAD"]
["A49504-KNIPELMEYER","A49504",null,null,null,null,"KNIPELMEYER"]
["A49506-BELLEVUE","A49506",null,null,null,null,"BELLEVUE"]
["A49510-MAQUOKETA","A49510",null,null,null,null,"MAQUOKETA"]
["A49516-TURNER","A49516",null,null,null,null,"TURNER"]
["A49520-BALDWIN","A49520",null,null,null,null,"BALDWIN"]
["A49524-GRIEBEL","A49524",null,null,null,null,"GRIEBEL"]
["A49526-BELLEVUE FARM","A49526",null,null,null,null,"BELLEVUE FARM"]
["A49530-PETERSON","A49530",null,null,null,null,"PETERSON"]
["A49532-IRON HILL","A49532",null,null,null,null,"IRON HILL"]
["A50504-REASNOR","A50504",null,null,null,null,"REASNOR"]
["A52002-FOUR CO.","A52002",null,null,null,null,"FOUR CO."]
["A52008-ERNST","A52008",null,null,null,null,"ERNST"]
[{"$f":"CONCATENATE(B1127,\"-\",G1127)","v":"A52502-SHOWERS"},"A52502",null,null,null,null,"SHOWERS"]
["A52506-BUTLER","A52506",null,null,null,null,"BUTLER"]
["A52508-WILLIAMS","A52508",null,null,null,null,"WILLIAMS"]
["A52510-RIVERSIDE #2","A52510",null,null,null,null,"RIVERSIDE #2"]
["A53014-JACOBS-SCOTCH GROVE","A53014",null,null,null,null,"JACOBS-SCOTCH GROVE"]
["A53502-MONTICELLO","A53502",null,null,null,null,"MONTICELLO"]
["A53506-FINN","A53506",null,null,null,null,"FINN"]
["A53508-ANAMOSA-VERNON","A53508",null,null,null,null,"ANAMOSA-VERNON"]
["A53510-KNAPP","A53510",null,null,null,null,"KNAPP"]
["A53514-FLEMING","A53514",null,null,null,null,"FLEMING"]
["A53522-WEBER","A53522",null,null,null,null,"WEBER"]
["A53526-STEPHENS","A53526",null,null,null,null,"STEPHENS"]
["A53528-ANAMOSA","A53528",null,null,null,null,"ANAMOSA"]
["A53530-ANAMOSA-WOOD'S","A53530",null,null,null,null,"ANAMOSA-WOOD'S"]
["A53532-LOES","A53532",null,null,null,null,"LOES"]
["A54008-HARPER","A54008",null,null,null,null,"HARPER"]
["A54012-KEOKUK COUNTY QUARRY","A54012",null,null,null,null,"KEOKUK COUNTY QUARRY"]
["A54502-WINN","A54502",null,null,null,null,"WINN"]
["A55506-WHITTEMORE","A55506",null,null,null,null,"WHITTEMORE"]
["A55508-IRVINGTON","A55508",null,null,null,null,"IRVINGTON"]
["A55518-REDING","A55518",null,null,null,null,"REDING"]
["A56002-HAWKEYE","A56002",null,null,null,null,"HAWKEYE"]
["A56006-ARGYLE","A56006",null,null,null,null,"ARGYLE"]
["A56008-DONNELLSON","A56008",null,null,null,null,"DONNELLSON"]
["A56012-VINCENNES","A56012",null,null,null,null,"VINCENNES"]
["A56014-BEACH","A56014",null,null,null,null,"BEACH"]
["A56018-OMG CESSFORD AUGUSTA","A56018",null,null,null,null,"OMG CESSFORD AUGUSTA"]
["A56020-PNB PROCESSORS AUGUSTA","A56020",null,null,null,null,"PNB PROCESSORS AUGUSTA"]
["A56022-VINCENNES SAND PIT QUARRY","A56022",null,null,null,null,"VINCENNES SAND PIT QUARRY"]
["A56504-VINCENNES","A56504",null,null,null,null,"VINCENNES"]
["A56506-FT MADISON","A56506",null,null,null,null,"FT MADISON"]
["A56508-LEE COUNTY S & G","A56508",null,null,null,null,"LEE COUNTY S & G"]
["A57010-TROY MILLS","A57010",null,null,null,null,"TROY MILLS"]
["A57014-SWEETING","A57014",null,null,null,null,"SWEETING"]
["A57016-ALICE","A57016",null,null,null,null,"ALICE"]
["A57026-COOK","A57026",null,null,null,null,"COOK"]
["A57502-SWEETING","A57502",null,null,null,null,"SWEETING"]
["A57506-CEDAR RAPIDS","A57506",null,null,null,null,"CEDAR RAPIDS"]
["A57508-EAST MARION","A57508",null,null,null,null,"EAST MARION"]
["A57520-IVANHOE","A57520",null,null,null,null,"IVANHOE"]
["A57522-CENTRAL CITY","A57522",null,null,null,null,"CENTRAL CITY"]
["A57524-COGGON","A57524",null,null,null,null,"COGGON"]
["A57526-TROY MILLS","A57526",null,null,null,null,"TROY MILLS"]
["A57528-BLAIRSFERRY SAND","A57528",null,null,null,null,"BLAIRSFERRY SAND"]
["A57530-HESS","A57530",null,null,null,null,"HESS"]
["A57532-PALO","A57532",null,null,null,null,"PALO"]
["A57534-LINN COUNTY SAND","A57534",null,null,null,null,"LINN COUNTY SAND"]
["A57536-POWER PLANT","A57536",null,null,null,null,"POWER PLANT"]
["A58504-FREDONIA","A58504",null,null,null,null,"FREDONIA"]
["A60502-ROCK RAPIDS #1","A60502",null,null,null,null,"ROCK RAPIDS #1"]
["A60504-ROCK RAPIDS #2","A60504",null,null,null,null,"ROCK RAPIDS #2"]
["A60510-OLSON","A60510",null,null,null,null,"OLSON"]
["A60518-STENSLAND","A60518",null,null,null,null,"STENSLAND"]
["A60530-KOOIKER","A60530",null,null,null,null,"KOOIKER"]
["A60534-EGEBO","A60534",null,null,null,null,"EGEBO"]
["A60540-KANANGEITER","A60540",null,null,null,null,"KANANGEITER"]
["A60542-EBEN","A60542",null,null,null,null,"EBEN"]
["A60544-ORVE","A60544",null,null,null,null,"ORVE"]
["A60546-VANDERBRINK","A60546",null,null,null,null,"VANDERBRINK"]
["A60548-O'CONNER","A60548",null,null,null,null,"O'CONNER"]
["A60550-DENGLER","A60550",null,null,null,null,"DENGLER"]
["A61002-EARLY CHAPEL-DAGGETT","A61002",null,null,null,null,"EARLY CHAPEL-DAGGETT"]
["A61006-92 QUARRY","A61006",null,null,null,null,"92 QUARRY"]
["A61012-EAST WINTERSET","A61012",null,null,null,null,"EAST WINTERSET"]
[{"$f":"CONCATENATE(B1191,\"-\",G1191)","v":"A61013-WINTERSET WEST"},"A61013",null,null,null,null,"WINTERSET WEST"]
["A61016-PERU","A61016",null,null,null,null,"PERU"]
["A61024-PENN-DIXIE","A61024",null,null,null,null,"PENN-DIXIE"]
["A61032-EARLHAM-THRAILKILL","A61032",null,null,null,null,"EARLHAM-THRAILKILL"]
["A61036-MONARCH CEMENT OF IOWA","A61036",null,null,null,null,"MONARCH CEMENT OF IOWA"]
["A62502-G71","A62502",null,null,null,null,"G71"]
["A63512-NEW HARVEY","A63512",null,null,null,null,"NEW HARVEY"]
["A64002-FERGUSON","A64002",null,null,null,null,"FERGUSON"]
["A64502-MARSHALLTOWN","A64502",null,null,null,null,"MARSHALLTOWN"]
["A64506-BEACH","A64506",null,null,null,null,"BEACH"]
["A65006-MALVERN","A65006",null,null,null,null,"MALVERN"]
["A66018-DYNES","A66018",null,null,null,null,"DYNES"]
["A66020-ASPEL","A66020",null,null,null,null,"ASPEL"]
["A66022-WAGNER","A66022",null,null,null,null,"WAGNER"]
["A66024-GRUNDEL","A66024",null,null,null,null,"GRUNDEL"]
["A66026-KOSTER","A66026",null,null,null,null,"KOSTER"]
["A66028-WINTERS","A66028",null,null,null,null,"WINTERS"]
["A66502-OSAGE-SCHMIDT","A66502",null,null,null,null,"OSAGE-SCHMIDT"]
["A66512-KLAAHSEN","A66512",null,null,null,null,"KLAAHSEN"]
["A66514-LOVIK","A66514",null,null,null,null,"LOVIK"]
["A66516-BOERJAN","A66516",null,null,null,null,"BOERJAN"]
["A66518-KITTLESON","A66518",null,null,null,null,"KITTLESON"]
["A66520-LESCH","A66520",null,null,null,null,"LESCH"]
["A67502-RODNEY","A67502",null,null,null,null,"RODNEY"]
["A68004-EDDYVILLE-SOUTH","A68004",null,null,null,null,"EDDYVILLE-SOUTH"]
["A69002-STENNETT","A69002",null,null,null,null,"STENNETT"]
["A69504-ELLIOT","A69504",null,null,null,null,"ELLIOT"]
["A70006-WILTON","A70006",null,null,null,null,"WILTON"]
["A70008-MONTPELIER","A70008",null,null,null,null,"MONTPELIER"]
["A70504-ATALISSA-MCKILLIP","A70504",null,null,null,null,"ATALISSA-MCKILLIP"]
["A70506-ACME","A70506",null,null,null,null,"ACME"]
["A70508-HAHN","A70508",null,null,null,null,"HAHN"]
["A71504-RABE PAULLINA","A71504",null,null,null,null,"RABE PAULLINA"]
["A71528-COUNTY","A71528",null,null,null,null,"COUNTY"]
["A71530-ROHLIN","A71530",null,null,null,null,"ROHLIN"]
["A71534-SHELDON/KLEINWALTERINK","A71534",null,null,null,null,"SHELDON/KLEINWALTERINK"]
["A71536-PHLOW CREEK","A71536",null,null,null,null,"PHLOW CREEK"]
["A72504-OCHEYEDAN","A72504",null,null,null,null,"OCHEYEDAN"]
["A72506-ASHTON","A72506",null,null,null,null,"ASHTON"]
["A72520-OCHEYEDAN NORTH","A72520",null,null,null,null,"OCHEYEDAN NORTH"]
["A72524-BOERHAVE","A72524",null,null,null,null,"BOERHAVE"]
["A72528-DIRKS","A72528",null,null,null,null,"DIRKS"]
["A72530-BOYD","A72530",null,null,null,null,"BOYD"]
["A72532-OCHEYEDAN/PEDLEY","A72532",null,null,null,null,"OCHEYEDAN/PEDLEY"]
["A72534-ASHTON-SEIVERT","A72534",null,null,null,null,"ASHTON-SEIVERT"]
["A72536-HARTWIG","A72536",null,null,null,null,"HARTWIG"]
["A73004-SHAMBAUGH","A73004",null,null,null,null,"SHAMBAUGH"]
["A73508-SHENANDOAH-CONNELL II","A73508",null,null,null,null,"SHENANDOAH-CONNELL II"]
["A74502-EMMETSBURG S&G","A74502",null,null,null,null,"EMMETSBURG S&G"]
["A75502-AKRON","A75502",null,null,null,null,"AKRON"]
["A75503-AKRON","A75503",null,null,null,null,"AKRON"]
["A75516-BRUNSVILLE","A75516",null,null,null,null,"BRUNSVILLE"]
["A75518-HINTON","A75518",null,null,null,null,"HINTON"]
["A75520-MERRILL","A75520",null,null,null,null,"MERRILL"]
["A75524-G DIRKSEN #2","A75524",null,null,null,null,"G DIRKSEN #2"]
["A75526-FRITZ DIRKSEN","A75526",null,null,null,null,"FRITZ DIRKSEN"]
["A76514-MILLER","A76514",null,null,null,null,"MILLER"]
["A76516-JANSSEN","A76516",null,null,null,null,"JANSSEN"]
["A77504-DENNY-JOHNSTON","A77504",null,null,null,null,"DENNY-JOHNSTON"]
["A77522-EDM #2-VANDALIA","A77522",null,null,null,null,"EDM #2-VANDALIA"]
["A77530-NORTH DES MOINES","A77530",null,null,null,null,"NORTH DES MOINES"]
["A77532-WEST DES MOINES","A77532",null,null,null,null,"WEST DES MOINES"]
["A77534-SAYLORVILLE SAND","A77534",null,null,null,null,"SAYLORVILLE SAND"]
["A77536-SAYLORCREEK SAND","A77536",null,null,null,null,"SAYLORCREEK SAND"]
[{"$f":"CONCATENATE(B1255,\"-\",G1255)","v":"A78002-CRESCENT"},"A78002",null,null,null,null,"CRESCENT"]
["A78006-MACEDONIA-K&S","A78006",null,null,null,null,"MACEDONIA-K&S"]
["A78504-OAKLAND","A78504",null,null,null,null,"OAKLAND"]
["A78506-CRESCENT","A78506",null,null,null,null,"CRESCENT"]
["A80002-WATTERSON","A80002",null,null,null,null,"WATTERSON"]
["A81502-SACTON-LAKEVIEW","A81502",null,null,null,null,"SACTON-LAKEVIEW"]
["A81504-AUBURN","A81504",null,null,null,null,"AUBURN"]
["A81506-SAC CITY","A81506",null,null,null,null,"SAC CITY"]
["A81514-CARNARVON S&G","A81514",null,null,null,null,"CARNARVON S&G"]
["A81520-UREN","A81520",null,null,null,null,"UREN"]
["A81522-ULMER","A81522",null,null,null,null,"ULMER"]
["A81528-WALL LAKE","A81528",null,null,null,null,"WALL LAKE"]
["A81530-LEITZ NORTH","A81530",null,null,null,null,"LEITZ NORTH"]
["A81534-EARLY","A81534",null,null,null,null,"EARLY"]
["A81536-DAIKER","A81536",null,null,null,null,"DAIKER"]
["A81538-HEIM","A81538",null,null,null,null,"HEIM"]
["A81540-COLBURN","A81540",null,null,null,null,"COLBURN"]
["A81542-WALL LAKE BOYER","A81542",null,null,null,null,"WALL LAKE BOYER"]
["A81544-ULMER-MEISTER","A81544",null,null,null,null,"ULMER-MEISTER"]
["A81546-MEISTER","A81546",null,null,null,null,"MEISTER"]
["A81548-PHILLIPS","A81548",null,null,null,null,"PHILLIPS"]
["A81550-HOSTEG-HAGGE","A81550",null,null,null,null,"HOSTEG-HAGGE"]
["A82502-MCCAUSLAND(MC43)","A82502",null,null,null,null,"MCCAUSLAND(MC43)"]
["A83506-HARLAN-REINIG","A83506",null,null,null,null,"HARLAN-REINIG"]
["A83508-JACKSONVILLE","A83508",null,null,null,null,"JACKSONVILLE"]
["A84502-VANZEE","A84502",null,null,null,null,"VANZEE"]
["A84506-HUDSON-OSTERCAMP","A84506",null,null,null,null,"HUDSON-OSTERCAMP"]
["A84510-HAWARDEN-NORTH","A84510",null,null,null,null,"HAWARDEN-NORTH"]
["A84518-VON ARB","A84518",null,null,null,null,"VON ARB"]
["A84520-CHATSWORTH","A84520",null,null,null,null,"CHATSWORTH"]
["A84522-HYMAN","A84522",null,null,null,null,"HYMAN"]
["A84524-GROTH","A84524",null,null,null,null,"GROTH"]
["A84528-HIGMAN-CHATSWORTH","A84528",null,null,null,null,"HIGMAN-CHATSWORTH"]
["A84532-LASSON","A84532",null,null,null,null,"LASSON"]
["A84534-CLEVERINGA","A84534",null,null,null,null,"CLEVERINGA"]
["A84536-VANBEEK","A84536",null,null,null,null,"VANBEEK"]
["A84538-VAN'T HUL","A84538",null,null,null,null,"VAN'T HUL"]
["A85510-AMES SOUTH","A85510",null,null,null,null,"AMES SOUTH"]
["A86502-FLINT","A86502",null,null,null,null,"FLINT"]
["A88002-THAYER","A88002",null,null,null,null,"THAYER"]
["A90506-WAPELLO CO SAND & ROCK","A90506",null,null,null,null,"WAPELLO CO SAND & ROCK"]
["A90508-STEVENSON","A90508",null,null,null,null,"STEVENSON"]
["A90510-CHILLICOTHE","A90510",null,null,null,null,"CHILLICOTHE"]
["A92006-COPPOCK","A92006",null,null,null,null,"COPPOCK"]
["A92008-PEPPER-KEOTA FIELD","A92008",null,null,null,null,"PEPPER-KEOTA FIELD"]
["A92014-COPPOCK NORTH","A92014",null,null,null,null,"COPPOCK NORTH"]
["A92502-RIVERSIDE","A92502",null,null,null,null,"RIVERSIDE"]
["A94008-BUSKE","A94008",null,null,null,null,"BUSKE"]
["A94502-YATES","A94502",null,null,null,null,"YATES"]
["A94522-CROFT","A94522",null,null,null,null,"CROFT"]
["A94526-BUSKE","A94526",null,null,null,null,"BUSKE"]
["A94528-CONDON","A94528",null,null,null,null,"CONDON"]
["A94530-RASCH","A94530",null,null,null,null,"RASCH"]
["A94532-REIGELSBERGER","A94532",null,null,null,null,"REIGELSBERGER"]
["A96003-BROWN","A96003",null,null,null,null,"BROWN"]
["A96005-MCGEE","A96005",null,null,null,null,"MCGEE"]
["A96007-JACKSON","A96007",null,null,null,null,"JACKSON"]
["A96013-YOUNG","A96013",null,null,null,null,"YOUNG"]
["A96015-MARTIN","A96015",null,null,null,null,"MARTIN"]
["A96019-ENGELHARDT","A96019",null,null,null,null,"ENGELHARDT"]
["A96022-MADISON #2","A96022",null,null,null,null,"MADISON #2"]
["A96040-LOCUST","A96040",null,null,null,null,"LOCUST"]
["A96046-SERSLAND-SMORSTAD","A96046",null,null,null,null,"SERSLAND-SMORSTAD"]
["A96048-LOVE #1","A96048",null,null,null,null,"LOVE #1"]
[{"$f":"CONCATENATE(B1319,\"-\",G1319)","v":"A96049-LOVE #2"},"A96049",null,null,null,null,"LOVE #2"]
["A96050-BULLERMAN-FESTINA","A96050",null,null,null,null,"BULLERMAN-FESTINA"]
["A96054-HORSESHOE BEND","A96054",null,null,null,null,"HORSESHOE BEND"]
["A96060-BURR OAK","A96060",null,null,null,null,"BURR OAK"]
["A96072-MCKENNA NORTH","A96072",null,null,null,null,"MCKENNA NORTH"]
["A96074-OSSIAN","A96074",null,null,null,null,"OSSIAN"]
["A96078-BUSTA","A96078",null,null,null,null,"BUSTA"]
["A96082-CROW","A96082",null,null,null,null,"CROW"]
["A96084-YOUNG","A96084",null,null,null,null,"YOUNG"]
["A96092-HANSON","A96092",null,null,null,null,"HANSON"]
["A96094-CAROLAN","A96094",null,null,null,null,"CAROLAN"]
["A96502-DECORAH","A96502",null,null,null,null,"DECORAH"]
["A96506-FREEPORT","A96506",null,null,null,null,"FREEPORT"]
["A96520-SWEDES BOTTOM","A96520",null,null,null,null,"SWEDES BOTTOM"]
["A96522-WOHLSEORS","A96522",null,null,null,null,"WOHLSEORS"]
["A96526-STIKA","A96526",null,null,null,null,"STIKA"]
["A96528-GJETLEY","A96528",null,null,null,null,"GJETLEY"]
["A96530-CARLSON-FREEPORT","A96530",null,null,null,null,"CARLSON-FREEPORT"]
["A96532-SCHMITT","A96532",null,null,null,null,"SCHMITT"]
["A97502-CORRECTIONVILLE-BUCK","A97502",null,null,null,null,"CORRECTIONVILLE-BUCK"]
["A97510-CORRECTIONVILLE-COCKBURN","A97510",null,null,null,null,"CORRECTIONVILLE-COCKBURN"]
["A97516-ANTHON","A97516",null,null,null,null,"ANTHON"]
["A97518-SMITHLAND","A97518",null,null,null,null,"SMITHLAND"]
["A97520-CORRECTIONVILLE-BREESIE","A97520",null,null,null,null,"CORRECTIONVILLE-BREESIE"]
["A97526-FLEWELLING","A97526",null,null,null,null,"FLEWELLING"]
["A97528-EDWARDS","A97528",null,null,null,null,"EDWARDS"]
["A97530-NELSTAR","A97530",null,null,null,null,"NELSTAR"]
["A97532-CREASEY","A97532",null,null,null,null,"CREASEY"]
["A97534-ANTHON-TRUITT","A97534",null,null,null,null,"ANTHON-TRUITT"]
["A97538-ANTHON-WRIGHT","A97538",null,null,null,null,"ANTHON-WRIGHT"]
["A98502-RANDALL TRANSIT MIX","A98502",null,null,null,null,"RANDALL TRANSIT MIX"]
["A98504-FERTILE","A98504",null,null,null,null,"FERTILE"]
["A98518-COOPER","A98518",null,null,null,null,"COOPER"]
["A98522-EMIL OLSON-BOLTON","A98522",null,null,null,null,"EMIL OLSON-BOLTON"]
["A98524-TRENHAILE","A98524",null,null,null,null,"TRENHAILE"]
["A98526-MOUW","A98526",null,null,null,null,"MOUW"]
["A99502-WRIGHT","A99502",null,null,null,null,"WRIGHT"]
["A99506-LESHER","A99506",null,null,null,null,"LESHER"]
["A99510-MEINEKE","A99510",null,null,null,null,"MEINEKE"]
["A99514-VOSS","A99514",null,null,null,null,"VOSS"]
["A99518-REICHTER","A99518",null,null,null,null,"REICHTER"]
["A99520-DENNIS PETERSON","A99520",null,null,null,null,"DENNIS PETERSON"]
["A99522-LOUX","A99522",null,null,null,null,"LOUX"]
["A99524-STECHER","A99524",null,null,null,null,"STECHER"]
["AIL002-BIGGSVILLE","AIL002",null,null,null,null,"BIGGSVILLE"]
["AIL028-TURNBAUGH-MT CARROLL, ILL.","AIL028",null,null,null,null,"TURNBAUGH-MT CARROLL, ILL."]
["AIL044-GAP GROVE","AIL044",null,null,null,null,"GAP GROVE"]
["AIL046-BLUFF CITY MINERALS","AIL046",null,null,null,null,"BLUFF CITY MINERALS"]
["AIL502-ALBANY(MC@511)","AIL502",null,null,null,null,"ALBANY(MC@511)"]
["AIL502-ALBANY(MC@511)","AIL502",null,null,null,null,"ALBANY(MC@511)"]
["AIL504-BIG ISLAND(MC51)","AIL504",null,null,null,null,"BIG ISLAND(MC51)"]
["AIL518-THOMPSON","AIL518",null,null,null,null,"THOMPSON"]
["AIL520-CORDOVA(MC14@508)","AIL520",null,null,null,null,"CORDOVA(MC14@508)"]
["AIL522-CORDOVA INLAND (MC17)","AIL522",null,null,null,null,"CORDOVA INLAND (MC17)"]
["AIL524-LYNDON","AIL524",null,null,null,null,"LYNDON"]
["AIL526-BLUFF CITY SAND","AIL526",null,null,null,null,"BLUFF CITY SAND"]
["AKS004-EUDORA","AKS004",null,null,null,null,"EUDORA"]
["AKS504-FRISBIE- PLANT #3","AKS504",null,null,null,null,"FRISBIE- PLANT #3"]
["AMN014-BIG SPRINGS","AMN014",null,null,null,null,"BIG SPRINGS"]
["AMN018-GRAND MEADOW","AMN018",null,null,null,null,"GRAND MEADOW"]
["AMN048-RED ROCK","AMN048",null,null,null,null,"RED ROCK"]
["AMN050-JASPER STONE","AMN050",null,null,null,null,"JASPER STONE"]
["AMN504-NEW ALBIN","AMN504",null,null,null,null,"NEW ALBIN"]
["AMN508-HANSON","AMN508",null,null,null,null,"HANSON"]
[{"$f":"CONCATENATE(B1383,\"-\",G1383)","v":"AMN516-OLSON"},"AMN516",null,null,null,null,"OLSON"]
["AMN518-LANESBORO","AMN518",null,null,null,null,"LANESBORO"]
["AMN522-PRAIRIE ISLAND #3","AMN522",null,null,null,null,"PRAIRIE ISLAND #3"]
["AMN524-HASTINGS #2","AMN524",null,null,null,null,"HASTINGS #2"]
["AMN526-LAKEVILLE","AMN526",null,null,null,null,"LAKEVILLE"]
["AMN528-POPE","AMN528",null,null,null,null,"POPE"]
["AMN532-LARSON","AMN532",null,null,null,null,"LARSON"]
["AMN536-ELK RIVER","AMN536",null,null,null,null,"ELK RIVER"]
["AMN538-SHADE","AMN538",null,null,null,null,"SHADE"]
["AMN540-SCOTT","AMN540",null,null,null,null,"SCOTT"]
["AMN544-LAKEVILLE","AMN544",null,null,null,null,"LAKEVILLE"]
["AMN546-WALLNER","AMN546",null,null,null,null,"WALLNER"]
["AMN548-HENDERSON","AMN548",null,null,null,null,"HENDERSON"]
["AMN550-SACHS","AMN550",null,null,null,null,"SACHS"]
["AMN552-WINDMILL","AMN552",null,null,null,null,"WINDMILL"]
["AMN554-ANNENDALE","AMN554",null,null,null,null,"ANNENDALE"]
["AMN558-ST CROIX","AMN558",null,null,null,null,"ST CROIX"]
["AMN560-ROSEMOUNT","AMN560",null,null,null,null,"ROSEMOUNT"]
["AMN562-LUVERNE","AMN562",null,null,null,null,"LUVERNE"]
["AMN564-HASTINGS-MAR FARMS","AMN564",null,null,null,null,"HASTINGS-MAR FARMS"]
["AMN566-ELK RIVER","AMN566",null,null,null,null,"ELK RIVER"]
["AMN568-EMPIRE","AMN568",null,null,null,null,"EMPIRE"]
["AMN572-KUESTER #3","AMN572",null,null,null,null,"KUESTER #3"]
["AMO012-DR. JEFFERIES","AMO012",null,null,null,null,"DR. JEFFERIES"]
["AMO018-ROUTE C","AMO018",null,null,null,null,"ROUTE C"]
["AMO030-EDINA","AMO030",null,null,null,null,"EDINA"]
["AMO032-GRAHAM","AMO032",null,null,null,null,"GRAHAM"]
["AMO040-SOUTH ALLENDALE","AMO040",null,null,null,null,"SOUTH ALLENDALE"]
["AMO044-NEW LONDON","AMO044",null,null,null,null,"NEW LONDON"]
["AMO046-BETHANY","AMO046",null,null,null,null,"BETHANY"]
["AMO048-BREIT","AMO048",null,null,null,null,"BREIT"]
["AMO050-PRINCETON","AMO050",null,null,null,null,"PRINCETON"]
["AMO054-BUTLER HILL","AMO054",null,null,null,null,"BUTLER HILL"]
["AMO056-TRENTON","AMO056",null,null,null,null,"TRENTON"]
["AMO502-WAYLAND","AMO502",null,null,null,null,"WAYLAND"]
["AMO516-MOUNT MORIAH","AMO516",null,null,null,null,"MOUNT MORIAH"]
["AMO518-TAYLOR","AMO518",null,null,null,null,"TAYLOR"]
["AMO520-STANBERRY","AMO520",null,null,null,null,"STANBERRY"]
["AMO522-GUILFORD","AMO522",null,null,null,null,"GUILFORD"]
["AMO524-CS61 LAGRANGE S&G","AMO524",null,null,null,null,"CS61 LAGRANGE S&G"]
["ANE010-FT CALHOUN","ANE010",null,null,null,null,"FT CALHOUN"]
["ANE012-SPRINGFIELD","ANE012",null,null,null,null,"SPRINGFIELD"]
["ANE502-CULLOM  #5","ANE502",null,null,null,null,"CULLOM  #5"]
["ANE504-WATERLOO #40","ANE504",null,null,null,null,"WATERLOO #40"]
["ANE514-OREAPOLIS #8","ANE514",null,null,null,null,"OREAPOLIS #8"]
["ANE534-SPRINGFIELD #3","ANE534",null,null,null,null,"SPRINGFIELD #3"]
["ANE538-WEST POINT","ANE538",null,null,null,null,"WEST POINT"]
["ANE542-PLANT #47","ANE542",null,null,null,null,"PLANT #47"]
["ANE544-VALLEY","ANE544",null,null,null,null,"VALLEY"]
["ANE546-PLANT #77","ANE546",null,null,null,null,"PLANT #77"]
["ANE548-PLANT #6","ANE548",null,null,null,null,"PLANT #6"]
["ANE550-PLANT #50","ANE550",null,null,null,null,"PLANT #50"]
["ANE552-PLANT #7","ANE552",null,null,null,null,"PLANT #7"]
["ANE554-PLANT #7","ANE554",null,null,null,null,"PLANT #7"]
["ANE560-PLANT #47B","ANE560",null,null,null,null,"PLANT #47B"]
["ANE562-PLANT #51","ANE562",null,null,null,null,"PLANT #51"]
["ANE564-KMG","ANE564",null,null,null,null,"KMG"]
["ASD008-SPENCER","ASD008",null,null,null,null,"SPENCER"]
["ASD502-BOYER","ASD502",null,null,null,null,"BOYER"]
["ASD508-CANTON","ASD508",null,null,null,null,"CANTON"]
["ASD510-MINNEHAHA CO.","ASD510",null,null,null,null,"MINNEHAHA CO."]
["ASD518-MCVAY","ASD518",null,null,null,null,"MCVAY"]
["ASD520-BOYER NORTH","ASD520",null,null,null,null,"BOYER NORTH"]
["ASD522-BROOKINGS","ASD522",null,null,null,null,"BROOKINGS"]
[{"$f":"CONCATENATE(B1447,\"-\",G1447)","v":"ASD526-CORSON"},"ASD526",null,null,null,null,"CORSON"]
["ASD528-EAST SIOUX","ASD528",null,null,null,null,"EAST SIOUX"]
["AWI004-ROCK SPRINGS","AWI004",null,null,null,null,"ROCK SPRINGS"]
["AWI036-TORK","AWI036",null,null,null,null,"TORK"]
["AWI040-JACKSON COUNTY IRON MINE","AWI040",null,null,null,null,"JACKSON COUNTY IRON MINE"]
["AWI042-CROSBY","AWI042",null,null,null,null,"CROSBY"]
["AWI048-HOGAN","AWI048",null,null,null,null,"HOGAN"]
["AWI502-PRAIRIE DU CHIEN","AWI502",null,null,null,null,"PRAIRIE DU CHIEN"]
["AWI504-VOGT FARM","AWI504",null,null,null,null,"VOGT FARM"]
["AWI506-KRAMER","AWI506",null,null,null,null,"KRAMER"]
["AWI508-BARN","AWI508",null,null,null,null,"BARN"]
["AWI510-KRUG","AWI510",null,null,null,null,"KRUG"]
["AWI512-GIBBS","AWI512",null,null,null,null,"GIBBS"]
["AWI514-HAGER CITY","AWI514",null,null,null,null,"HAGER CITY"]
["AWI516-SCHEER","AWI516",null,null,null,null,"SCHEER"]
["AWI518-BAU","AWI518",null,null,null,null,"BAU"]
["AWI522-RIB FALLS PLANT","AWI522",null,null,null,null,"RIB FALLS PLANT"]
["AWI524-HAEF","AWI524",null,null,null,null,"HAEF"]
["AWI526-MILAS","AWI526",null,null,null,null,"MILAS"]
["AWI528-NELSON","AWI528",null,null,null,null,"NELSON"]